Publisher Label,Publisher URI,"Supplier ID","Supplier","Invoice No.","Amount £","Purpose","Transaction Number","Payment Date","Organisational Unit","Cost Centre(T)","Internal Category Number"
"Wolverhampton City Council","http://opendatacommunities.org/id/metropolitan-district-council/wolverhampton","705520","Midland News Association Limited","I7510803","197.88","Marketing \ Non-staff advertising","130224959","08/08/2018","Planning","Planning","R4317"
"Wolverhampton City Council","http://opendatacommunities.org/id/metropolitan-district-council/wolverhampton","705520","Midland News Association Limited","I7521563","1,484.08","Construction and Conversion","130224960","24/08/2018","-","GF - Maintenance of Non Highway Structures","C1100"
"Wolverhampton City Council","http://opendatacommunities.org/id/metropolitan-district-council/wolverhampton","705520","Midland News Association Limited","I7519596","395.76","Marketing \ Non-staff advertising","130224727","22/08/2018","Operation & Maintenance of Existing Network","UTC - Utilities Organisations","R4317"
"Wolverhampton City Council","http://opendatacommunities.org/id/metropolitan-district-council/wolverhampton","705520","Midland News Association Limited","I7513673","395.76","Marketing \ Non-staff advertising","130222875","03/08/2018","Operation & Maintenance of Existing Network","UTC - Utilities Organisations","R4317"
"Wolverhampton City Council","http://opendatacommunities.org/id/metropolitan-district-council/wolverhampton","705520","Midland News Association Limited","I7522398","523.80","Marketing \ Non-staff advertising","130225290","29/08/2018","Licensing","Licensing - Licensing Act 2003","R4317"
"Wolverhampton City Council","http://opendatacommunities.org/id/metropolitan-district-council/wolverhampton","705520","Midland News Association Limited","I7516399","395.76","Marketing \ Non-staff advertising","130224722","15/08/2018","Operation & Maintenance of Existing Network","UTC - Utilities Organisations","R4317"
"Wolverhampton City Council","http://opendatacommunities.org/id/metropolitan-district-council/wolverhampton","705520","Midland News Association Limited","I7516042","1,780.92","Marketing \ Non-staff advertising","130224004","15/08/2018","Public Protection","EHTS Operational Costs","R4317"
"Wolverhampton City Council","http://opendatacommunities.org/id/metropolitan-district-council/wolverhampton","705520","Midland News Association Limited","I7511571","56.04","Marketing \ Non-staff advertising","130223040","01/08/2018","Corporate Communications","Communications & Marketing - General","R4317"
"Wolverhampton City Council","http://opendatacommunities.org/id/metropolitan-district-council/wolverhampton","705520","Midland News Association Limited","I7511571","56.04","Marketing \ Non-staff advertising","130223040","01/08/2018","Enterprise","Economic Development","R4317"
"Wolverhampton City Council","http://opendatacommunities.org/id/metropolitan-district-council/wolverhampton","705520","Midland News Association Limited","I7514063","445.22","Marketing \ Non-staff advertising","130222876","08/08/2018","Operation & Maintenance of Existing Network","UTC - Utilities Organisations","R4317"
"Wolverhampton City Council","http://opendatacommunities.org/id/metropolitan-district-council/wolverhampton","705520","Midland News Association Limited","I7444882","1,850.00","Marketing \ Non-staff advertising","130204754","10/08/2018","Corporate Communications","Communications & Marketing - General","R4317"
"Wolverhampton City Council","http://opendatacommunities.org/id/metropolitan-district-council/wolverhampton","705520","Midland News Association Limited","I7519597","296.82","Marketing \ Non-staff advertising","130224728","22/08/2018","Planning","Planning","R4317"
"Wolverhampton City Council","http://opendatacommunities.org/id/metropolitan-district-council/wolverhampton","705520","Midland News Association Limited","I7522400","445.22","Construction and Conversion","130225291","29/08/2018","-","Heath Town","C1100"
"Wolverhampton City Council","http://opendatacommunities.org/id/metropolitan-district-council/wolverhampton","705520","Midland News Association Limited","I7516400","445.22","Marketing \ Non-staff advertising","130224723","15/08/2018","Operation & Maintenance of Existing Network","UTC - Utilities Organisations","R4317"
"Wolverhampton City Council","http://opendatacommunities.org/id/metropolitan-district-council/wolverhampton","705520","Midland News Association Limited","I7513317","692.58","Marketing \ Non-staff advertising","130223044","01/08/2018","Operation & Maintenance of Existing Network","UTC - Utilities Organisations","R4317"
"Wolverhampton City Council","http://opendatacommunities.org/id/metropolitan-district-council/wolverhampton","705520","Midland News Association Limited","I7517346","890.44","Marketing \ Non-staff advertising","130224724","17/08/2018","Operation & Maintenance of Existing Network","UTC - Utilities Organisations","R4317"
"Wolverhampton City Council","http://opendatacommunities.org/id/metropolitan-district-council/wolverhampton","705520","Midland News Association Limited","I7521564","1,088.32","Construction and Conversion","130224961","24/08/2018","-","GF - Accessing Growth Fund","C1100"
"Wolverhampton City Council","http://opendatacommunities.org/id/metropolitan-district-council/wolverhampton","705520","Midland News Association Limited","I7515210","222.62","Marketing \ Non-staff advertising","130223046","08/08/2018","Planning","Planning","R4317"
"Wolverhampton City Council","http://opendatacommunities.org/id/metropolitan-district-council/wolverhampton","705520","Midland News Association Limited","I7514381","816.26","Construction and Conversion","130222877","08/08/2018","-","Safety Programme","C1100"
"Wolverhampton City Council","http://opendatacommunities.org/id/metropolitan-district-council/wolverhampton","705520","Midland News Association Limited","I7516043","643.10","Construction and Conversion","130224005","15/08/2018","-","Safety Programme","C1100"
"Wolverhampton City Council","http://opendatacommunities.org/id/metropolitan-district-council/wolverhampton","705520","Midland News Association Limited","I7512193","450.00","Marketing \ Non-staff advertising","130223041","01/08/2018","Healthy Life Expectancy","Healthy Life Expectancy","R4317"
"Wolverhampton City Council","http://opendatacommunities.org/id/metropolitan-district-council/wolverhampton","705520","Midland News Association Limited","I7513316","643.10","Marketing \ Non-staff advertising","130223043","01/08/2018","Operation & Maintenance of Existing Network","UTC - Utilities Organisations","R4317"
"Wolverhampton City Council","http://opendatacommunities.org/id/metropolitan-district-council/wolverhampton","705525","Midland Quarry Products Limited","1980573963","3,167.50","Materials","130223425","15/08/2018","Highways Maintenance","Patching","R4007"
"Wolverhampton City Council","http://opendatacommunities.org/id/metropolitan-district-council/wolverhampton","705525","Midland Quarry Products Limited","1980579358","1,530.97","Materials","130225292","29/08/2018","Highways Maintenance","Patching","R4007"
"Wolverhampton City Council","http://opendatacommunities.org/id/metropolitan-district-council/wolverhampton","705525","Midland Quarry Products Limited","1980570567","1,675.02","Materials","130222346","01/08/2018","Highways Maintenance","Patching","R4007"
"Wolverhampton City Council","http://opendatacommunities.org/id/metropolitan-district-council/wolverhampton","705525","Midland Quarry Products Limited","1980572689","2,375.93","Materials","130223048","08/08/2018","Highways Maintenance","Patching","R4007"
"Wolverhampton City Council","http://opendatacommunities.org/id/metropolitan-district-council/wolverhampton","705525","Midland Quarry Products Limited","1980575966","108.16","Materials","130224135","22/08/2018","Highways Maintenance","Patching","R4007"
"Wolverhampton City Council","http://opendatacommunities.org/id/metropolitan-district-council/wolverhampton","705525","Midland Quarry Products Limited","1980568478","1,562.46","Materials","130224430","03/08/2018","Highways Maintenance","Patching","R4007"
"Wolverhampton City Council","http://opendatacommunities.org/id/metropolitan-district-council/wolverhampton","705525","Midland Quarry Products Limited","1980574669","2,225.48","Materials","130223706","15/08/2018","Highways Maintenance","Patching","R4007"
"Wolverhampton City Council","http://opendatacommunities.org/id/metropolitan-district-council/wolverhampton","705525","Midland Quarry Products Limited","1980569844","1,805.11","Materials","130222011","01/08/2018","Highways Maintenance","Patching","R4007"
"Wolverhampton City Council","http://opendatacommunities.org/id/metropolitan-district-council/wolverhampton","705525","Midland Quarry Products Limited","1980567741","2,091.50","Materials","130224270","03/08/2018","Highways Maintenance","Patching","R4007"
"Wolverhampton City Council","http://opendatacommunities.org/id/metropolitan-district-council/wolverhampton","705525","Midland Quarry Products Limited","1980571998","36.00","Materials","130222657","08/08/2018","Highways Maintenance","Patching","R4007"
"Wolverhampton City Council","http://opendatacommunities.org/id/metropolitan-district-council/wolverhampton","705525","Midland Quarry Products Limited","1980569845","307.18","Materials","130222012","01/08/2018","Highways Maintenance","Patching","R4007"
"Wolverhampton City Council","http://opendatacommunities.org/id/metropolitan-district-council/wolverhampton","705525","Midland Quarry Products Limited","1980567740","36.32","Materials","130224269","08/08/2018","Highways Maintenance","Patching","R4007"
"Wolverhampton City Council","http://opendatacommunities.org/id/metropolitan-district-council/wolverhampton","705525","Midland Quarry Products Limited","1980567742","640.36","Materials","130224271","08/08/2018","Highways Maintenance","Patching","R4007"
"Wolverhampton City Council","http://opendatacommunities.org/id/metropolitan-district-council/wolverhampton","705525","Midland Quarry Products Limited","1980575967","1,112.04","Materials","130224136","22/08/2018","Highways Maintenance","Patching","R4007"
"Wolverhampton City Council","http://opendatacommunities.org/id/metropolitan-district-council/wolverhampton","705525","Midland Quarry Products Limited","1980576901","3,093.13","Materials","130224431","22/08/2018","Highways Maintenance","Patching","R4007"
"Wolverhampton City Council","http://opendatacommunities.org/id/metropolitan-district-council/wolverhampton","705525","Midland Quarry Products Limited","1980571999","1,365.60","Materials","130222658","08/08/2018","Highways Maintenance","Patching","R4007"
"Wolverhampton City Council","http://opendatacommunities.org/id/metropolitan-district-council/wolverhampton","705525","Midland Quarry Products Limited","1980572000","373.06","Materials","130222659","08/08/2018","Highways Maintenance","Patching","R4007"
"Wolverhampton City Council","http://opendatacommunities.org/id/metropolitan-district-council/wolverhampton","705525","Midland Quarry Products Limited","1980573964","1,142.02","Materials","130223426","15/08/2018","Highways Maintenance","Patching","R4007"
"Wolverhampton City Council","http://opendatacommunities.org/id/metropolitan-district-council/wolverhampton","705525","Midland Quarry Products Limited","1980578772","885.33","Materials","130224963","29/08/2018","Highways Maintenance","Patching","R4007"
"Wolverhampton City Council","http://opendatacommunities.org/id/metropolitan-district-council/wolverhampton","705525","Midland Quarry Products Limited","1980569843","56.00","Materials","130222010","01/08/2018","Highways Maintenance","Patching","R4007"
"Wolverhampton City Council","http://opendatacommunities.org/id/metropolitan-district-council/wolverhampton","705534","Midlands Truck & Van Limited","83615461","220.50","Services - Professional Fees","190494687","10/08/2018","Fleet Services","Fleet Management","R4400"
"Wolverhampton City Council","http://opendatacommunities.org/id/metropolitan-district-council/wolverhampton","705534","Midlands Truck & Van Limited","83615461","363.25","Services - Professional Fees","190494687","10/08/2018","Fleet Services","Fleet Management","R4400"
"Wolverhampton City Council","http://opendatacommunities.org/id/metropolitan-district-council/wolverhampton","705542","Midwest Electrical Services Limited","I17106","23.38","R&M - Departmental planned (external)","130224272","29/08/2018","Maintenance Programme","Centralised R&M","R2001"
"Wolverhampton City Council","http://opendatacommunities.org/id/metropolitan-district-council/wolverhampton","705542","Midwest Electrical Services Limited","I16921","83.35","R&M - Departmental planned (external)","130222688","08/08/2018","Maintenance Programme","Centralised R&M","R2001"
"Wolverhampton City Council","http://opendatacommunities.org/id/metropolitan-district-council/wolverhampton","705542","Midwest Electrical Services Limited","I16901","47.17","R&M - Departmental planned (external)","130222671","08/08/2018","Facilities Management","Magistrates","R2001"
"Wolverhampton City Council","http://opendatacommunities.org/id/metropolitan-district-council/wolverhampton","705542","Midwest Electrical Services Limited","I16922","37.67","R&M - Departmental planned (external)","130222689","08/08/2018","Facilities Management","Caretakers Community Centre","R2001"
"Wolverhampton City Council","http://opendatacommunities.org/id/metropolitan-district-council/wolverhampton","705542","Midwest Electrical Services Limited","I16929","3,774.10","R&M - Departmental planned (external)","130222696","08/08/2018","Maintenance Programme","Centralised R&M","R2001"
"Wolverhampton City Council","http://opendatacommunities.org/id/metropolitan-district-council/wolverhampton","705542","Midwest Electrical Services Limited","I16910","33.33","R&M - Departmental planned (external)","130222679","08/08/2018","Facilities Management","Magistrates","R2001"
"Wolverhampton City Council","http://opendatacommunities.org/id/metropolitan-district-council/wolverhampton","705542","Midwest Electrical Services Limited","I16919","58.62","R&M - Departmental planned (external)","130222686","08/08/2018","Markets","Bilston Market and Licensed Operations","R2001"
"Wolverhampton City Council","http://opendatacommunities.org/id/metropolitan-district-council/wolverhampton","705542","Midwest Electrical Services Limited","I16914","29.56","R&M - Departmental planned (external)","130222683","08/08/2018","Facilities Management","Magistrates","R2001"
"Wolverhampton City Council","http://opendatacommunities.org/id/metropolitan-district-council/wolverhampton","705542","Midwest Electrical Services Limited","I16899","23.38","R&M - Departmental planned (external)","130222669","08/08/2018","Facilities Management","Caretakers Community Centre","R2001"
"Wolverhampton City Council","http://opendatacommunities.org/id/metropolitan-district-council/wolverhampton","705542","Midwest Electrical Services Limited","I16904","91.45","R&M - Departmental planned (external)","130222674","08/08/2018","Facilities Management","Magistrates","R2001"
"Wolverhampton City Council","http://opendatacommunities.org/id/metropolitan-district-council/wolverhampton","705542","Midwest Electrical Services Limited","I17023","167.88","R&M - Departmental planned (external)","130223577","22/08/2018","Facilities Management","Hickman Avenue Depot","R2001"
"Wolverhampton City Council","http://opendatacommunities.org/id/metropolitan-district-council/wolverhampton","705542","Midwest Electrical Services Limited","I17043","19,230.86","Construction and Conversion","130223716","22/08/2018","-","Electrical Works","C1100"
"Wolverhampton City Council","http://opendatacommunities.org/id/metropolitan-district-council/wolverhampton","705542","Midwest Electrical Services Limited","I17035","229.40","R&M - Departmental planned (external)","130223712","22/08/2018","Maintenance Programme","Centralised R&M","R2001"
"Wolverhampton City Council","http://opendatacommunities.org/id/metropolitan-district-council/wolverhampton","705542","Midwest Electrical Services Limited","I17004","107.44","R&M - Departmental planned (external)","130223565","17/08/2018","Maintenance Programme","Centralised R&M","R2001"
"Wolverhampton City Council","http://opendatacommunities.org/id/metropolitan-district-council/wolverhampton","705542","Midwest Electrical Services Limited","I15786","23.38","R&M - Departmental planned (external)","130225149","17/08/2018","Facilities Management","Magistrates","R2001"
"Wolverhampton City Council","http://opendatacommunities.org/id/metropolitan-district-council/wolverhampton","705542","Midwest Electrical Services Limited","I17008","99.18","R&M - Departmental planned (external)","130223569","17/08/2018","Facilities Management","Magistrates","R2001"
"Wolverhampton City Council","http://opendatacommunities.org/id/metropolitan-district-council/wolverhampton","705542","Midwest Electrical Services Limited","I17012","152.02","R&M - Departmental planned (external)","130223573","17/08/2018","Maintenance Programme","Centralised R&M","R2001"
"Wolverhampton City Council","http://opendatacommunities.org/id/metropolitan-district-council/wolverhampton","705542","Midwest Electrical Services Limited","I16822","7,626.00","R&M - Departmental planned (external)","130221364","17/08/2018","Corporate Asset Management","Centralised Planned Maintenance","R2001"
"Wolverhampton City Council","http://opendatacommunities.org/id/metropolitan-district-council/wolverhampton","705542","Midwest Electrical Services Limited","I17120","120.36","R&M - Departmental planned (external)","130224285","29/08/2018","Maintenance Programme","Centralised R&M","R2001"
"Wolverhampton City Council","http://opendatacommunities.org/id/metropolitan-district-council/wolverhampton","705542","Midwest Electrical Services Limited","I17158","157.17","R&M - Departmental planned (external)","130224731","29/08/2018","Schools","Pupil Referral Units - Braybrook Centre","R2001"
"Wolverhampton City Council","http://opendatacommunities.org/id/metropolitan-district-council/wolverhampton","705542","Midwest Electrical Services Limited","I17228","47.62","R&M - Departmental planned (external)","130225811","29/08/2018","Maintenance Programme","Centralised R&M","R2001"
"Wolverhampton City Council","http://opendatacommunities.org/id/metropolitan-district-council/wolverhampton","705542","Midwest Electrical Services Limited","I17126","58.67","R&M - Departmental planned (external)","130224436","29/08/2018","Maintenance Programme","Centralised R&M","R2001"
"Wolverhampton City Council","http://opendatacommunities.org/id/metropolitan-district-council/wolverhampton","705542","Midwest Electrical Services Limited","I17122","41.58","R&M - Departmental planned (external)","130224432","29/08/2018","Facilities Management","Culwell Street Depot","R2001"
"Wolverhampton City Council","http://opendatacommunities.org/id/metropolitan-district-council/wolverhampton","705542","Midwest Electrical Services Limited","I17234","107.46","R&M - Departmental planned (external)","130225817","29/08/2018","Maintenance Programme","Centralised R&M","R2001"
"Wolverhampton City Council","http://opendatacommunities.org/id/metropolitan-district-council/wolverhampton","705542","Midwest Electrical Services Limited","I17237","23.38","R&M - Departmental planned (external)","130225820","29/08/2018","Markets","Bilston Market and Licensed Operations","R2001"
"Wolverhampton City Council","http://opendatacommunities.org/id/metropolitan-district-council/wolverhampton","705542","Midwest Electrical Services Limited","I17045","23.38","R&M - Departmental planned (external)","130223718","22/08/2018","Adult Education","Foyer Building","R2001"
"Wolverhampton City Council","http://opendatacommunities.org/id/metropolitan-district-council/wolverhampton","705542","Midwest Electrical Services Limited","I17046","37.67","R&M - Departmental planned (external)","130223719","22/08/2018","Maintenance Programme","Centralised R&M","R2001"
"Wolverhampton City Council","http://opendatacommunities.org/id/metropolitan-district-council/wolverhampton","705542","Midwest Electrical Services Limited","I16987","29.33","R&M - Departmental planned (external)","130223429","17/08/2018","Facilities Management","i10 Facilities Management","R2001"
"Wolverhampton City Council","http://opendatacommunities.org/id/metropolitan-district-council/wolverhampton","705542","Midwest Electrical Services Limited","I17137","41.50","R&M - Departmental planned (external)","130224578","29/08/2018","Markets","Wolverhampton Indoor and Open Market","R2001"
"Wolverhampton City Council","http://opendatacommunities.org/id/metropolitan-district-council/wolverhampton","705542","Midwest Electrical Services Limited","I17231","29.30","R&M - Departmental planned (external)","130225814","29/08/2018","Maintenance Programme","Centralised R&M","R2001"
"Wolverhampton City Council","http://opendatacommunities.org/id/metropolitan-district-council/wolverhampton","705542","Midwest Electrical Services Limited","I17114","170.41","R&M - Departmental planned (external)","130224279","29/08/2018","Maintenance Programme","Centralised R&M","R2001"
"Wolverhampton City Council","http://opendatacommunities.org/id/metropolitan-district-council/wolverhampton","705542","Midwest Electrical Services Limited","I17154","253.90","R&M - Departmental planned (external)","130224583","29/08/2018","Maintenance Programme","Centralised R&M","R2001"
"Wolverhampton City Council","http://opendatacommunities.org/id/metropolitan-district-council/wolverhampton","705542","Midwest Electrical Services Limited","I17242","37.67","R&M - Departmental planned (external)","130225825","29/08/2018","Markets","Bilston Market and Licensed Operations","R2001"
"Wolverhampton City Council","http://opendatacommunities.org/id/metropolitan-district-council/wolverhampton","705542","Midwest Electrical Services Limited","I17229","23.38","R&M - Departmental planned (external)","130225812","29/08/2018","Maintenance Programme","Centralised R&M","R2001"
"Wolverhampton City Council","http://opendatacommunities.org/id/metropolitan-district-council/wolverhampton","705542","Midwest Electrical Services Limited","I17135","2.33","R&M - Departmental planned (external)","130224576","29/08/2018","Maintenance Programme","Centralised R&M","R2001"
"Wolverhampton City Council","http://opendatacommunities.org/id/metropolitan-district-council/wolverhampton","705542","Midwest Electrical Services Limited","I17135","37.67","R&M - Departmental planned (external)","130224576","29/08/2018","Maintenance Programme","Centralised R&M","R2001"
"Wolverhampton City Council","http://opendatacommunities.org/id/metropolitan-district-council/wolverhampton","705542","Midwest Electrical Services Limited","I16918","37.67","R&M - Departmental planned (external)","130222685","08/08/2018","Bereavement Services","Cemeteries","R2001"
"Wolverhampton City Council","http://opendatacommunities.org/id/metropolitan-district-council/wolverhampton","705542","Midwest Electrical Services Limited","I16907","84.43","R&M - Departmental planned (external)","130222677","08/08/2018","Maintenance Programme","Centralised R&M","R2001"
"Wolverhampton City Council","http://opendatacommunities.org/id/metropolitan-district-council/wolverhampton","705542","Midwest Electrical Services Limited","271","-150.00","Services - Consultants","130216479","08/08/2018","Planning","Building Consultancy","R4404"
"Wolverhampton City Council","http://opendatacommunities.org/id/metropolitan-district-council/wolverhampton","705542","Midwest Electrical Services Limited","I16898","23.38","R&M - Departmental planned (external)","130222668","08/08/2018","Maintenance Programme","Centralised R&M","R2001"
"Wolverhampton City Council","http://opendatacommunities.org/id/metropolitan-district-council/wolverhampton","705542","Midwest Electrical Services Limited","I16913","95.67","R&M - Departmental planned (external)","130222682","08/08/2018","Facilities Management","Magistrates","R2001"
"Wolverhampton City Council","http://opendatacommunities.org/id/metropolitan-district-council/wolverhampton","705542","Midwest Electrical Services Limited","I16928","37.67","R&M - Departmental planned (external)","130222695","08/08/2018","Facilities Management","Magistrates","R2001"
"Wolverhampton City Council","http://opendatacommunities.org/id/metropolitan-district-council/wolverhampton","705542","Midwest Electrical Services Limited","I16915","61.05","R&M - Departmental planned (external)","130222684","08/08/2018","Markets","Wholesale Market Facilities Management","R2001"
"Wolverhampton City Council","http://opendatacommunities.org/id/metropolitan-district-council/wolverhampton","705542","Midwest Electrical Services Limited","I16906","37.67","R&M - Departmental planned (external)","130222676","08/08/2018","Maintenance Programme","Centralised R&M","R2001"
"Wolverhampton City Council","http://opendatacommunities.org/id/metropolitan-district-council/wolverhampton","705542","Midwest Electrical Services Limited","I16900","49.32","R&M - Departmental planned (external)","130222670","08/08/2018","Facilities Management","Magistrates","R2001"
"Wolverhampton City Council","http://opendatacommunities.org/id/metropolitan-district-council/wolverhampton","705542","Midwest Electrical Services Limited","I17056","75.34","R&M - Departmental planned (external)","130223724","22/08/2018","Facilities Management","Magistrates","R2001"
"Wolverhampton City Council","http://opendatacommunities.org/id/metropolitan-district-council/wolverhampton","705542","Midwest Electrical Services Limited","I16723","808.33","R&M - Departmental planned (external)","130219902","24/08/2018","Maintenance Programme","Centralised R&M","R2001"
"Wolverhampton City Council","http://opendatacommunities.org/id/metropolitan-district-council/wolverhampton","705542","Midwest Electrical Services Limited","I17037","176.91","R&M - Departmental planned (external)","130223713","22/08/2018","Maintenance Programme","Centralised R&M","R2001"
"Wolverhampton City Council","http://opendatacommunities.org/id/metropolitan-district-council/wolverhampton","705542","Midwest Electrical Services Limited","I17025","128.61","R&M - Departmental planned (external)","130223578","22/08/2018","Maintenance Programme","Centralised R&M","R2001"
"Wolverhampton City Council","http://opendatacommunities.org/id/metropolitan-district-council/wolverhampton","705542","Midwest Electrical Services Limited","I17022","212.76","R&M - Departmental planned (external)","130223709","22/08/2018","Maintenance Programme","Centralised R&M","R2001"
"Wolverhampton City Council","http://opendatacommunities.org/id/metropolitan-district-council/wolverhampton","705542","Midwest Electrical Services Limited","I17243","25.53","R&M - Departmental planned (external)","130225826","29/08/2018","Skills","Connexions Contract","R2001"
"Wolverhampton City Council","http://opendatacommunities.org/id/metropolitan-district-council/wolverhampton","705542","Midwest Electrical Services Limited","I17007","88.15","R&M - Departmental planned (external)","130223568","17/08/2018","Facilities Management","Magistrates","R2001"
"Wolverhampton City Council","http://opendatacommunities.org/id/metropolitan-district-council/wolverhampton","705542","Midwest Electrical Services Limited","I16757","61.05","R&M - Departmental planned (external)","130220538","17/08/2018","Facilities Management","i10 Facilities Management","R2001"
"Wolverhampton City Council","http://opendatacommunities.org/id/metropolitan-district-council/wolverhampton","705542","Midwest Electrical Services Limited","I17011","132.52","R&M - Departmental planned (external)","130223572","17/08/2018","Maintenance Programme","Centralised R&M","R2001"
"Wolverhampton City Council","http://opendatacommunities.org/id/metropolitan-district-council/wolverhampton","705542","Midwest Electrical Services Limited","I17116","65.77","R&M - Departmental planned (external)","130224281","29/08/2018","Facilities Management","Hickman Avenue Depot","R2001"
"Wolverhampton City Council","http://opendatacommunities.org/id/metropolitan-district-council/wolverhampton","705542","Midwest Electrical Services Limited","I17140","42.00","R&M - Departmental planned (external)","130224581","29/08/2018","Maintenance Programme","Centralised R&M","R2001"
"Wolverhampton City Council","http://opendatacommunities.org/id/metropolitan-district-council/wolverhampton","705542","Midwest Electrical Services Limited","I17227","92.97","R&M - Departmental planned (external)","130225810","29/08/2018","Maintenance Programme","Centralised R&M","R2001"
"Wolverhampton City Council","http://opendatacommunities.org/id/metropolitan-district-council/wolverhampton","705542","Midwest Electrical Services Limited","I17230","120.46","R&M - Departmental planned (external)","130225813","29/08/2018","Maintenance Programme","Centralised R&M","R2001"
"Wolverhampton City Council","http://opendatacommunities.org/id/metropolitan-district-council/wolverhampton","705542","Midwest Electrical Services Limited","I17121","109.33","R&M - Departmental planned (external)","130224286","29/08/2018","Maintenance Programme","Centralised R&M","R2001"
"Wolverhampton City Council","http://opendatacommunities.org/id/metropolitan-district-council/wolverhampton","705542","Midwest Electrical Services Limited","I17112","50.21","R&M - Departmental planned (external)","130224277","29/08/2018","Facilities Management","Magistrates","R2001"
"Wolverhampton City Council","http://opendatacommunities.org/id/metropolitan-district-council/wolverhampton","705542","Midwest Electrical Services Limited","I17124","1,132.00","R&M - Departmental planned (external)","130224434","29/08/2018","Maintenance Programme","Centralised R&M","R2001"
"Wolverhampton City Council","http://opendatacommunities.org/id/metropolitan-district-council/wolverhampton","705542","Midwest Electrical Services Limited","I16917","48.15","R&M - Departmental planned (external)","130225152","17/08/2018","Maintenance Programme","Centralised R&M","R2001"
"Wolverhampton City Council","http://opendatacommunities.org/id/metropolitan-district-council/wolverhampton","705542","Midwest Electrical Services Limited","282","0.01","R&M - Departmental planned (external)","130225148","17/08/2018","Maintenance Programme","Centralised R&M","R2001"
"Wolverhampton City Council","http://opendatacommunities.org/id/metropolitan-district-council/wolverhampton","705542","Midwest Electrical Services Limited","282","-3,817.21","R&M - Departmental planned (external)","130225148","17/08/2018","Maintenance Programme","Centralised R&M","R2001"
"Wolverhampton City Council","http://opendatacommunities.org/id/metropolitan-district-council/wolverhampton","705542","Midwest Electrical Services Limited","I16985","265.00","R&M - Departmental planned (external)","130223427","17/08/2018","Leisure Services","Central Baths","R2001"
"Wolverhampton City Council","http://opendatacommunities.org/id/metropolitan-district-council/wolverhampton","705542","Midwest Electrical Services Limited","I17041","27,412.00","Construction and Conversion","130223714","22/08/2018","-","Electrical Works","C1100"
"Wolverhampton City Council","http://opendatacommunities.org/id/metropolitan-district-council/wolverhampton","705542","Midwest Electrical Services Limited","I17044","23.38","R&M - Departmental planned (external)","130223717","22/08/2018","Maintenance Programme","Centralised R&M","R2001"
"Wolverhampton City Council","http://opendatacommunities.org/id/metropolitan-district-council/wolverhampton","705542","Midwest Electrical Services Limited","290","0.01","R&M - Departmental planned (external)","130225697","22/08/2018","Maintenance Programme","Centralised R&M","R2001"
"Wolverhampton City Council","http://opendatacommunities.org/id/metropolitan-district-council/wolverhampton","705542","Midwest Electrical Services Limited","290","-15,588.77","R&M - Departmental planned (external)","130225697","22/08/2018","Maintenance Programme","Centralised R&M","R2001"
"Wolverhampton City Council","http://opendatacommunities.org/id/metropolitan-district-council/wolverhampton","705542","Midwest Electrical Services Limited","I16986","37.67","R&M - Departmental planned (external)","130223428","17/08/2018","Maintenance Programme","Centralised R&M","R2001"
"Wolverhampton City Council","http://opendatacommunities.org/id/metropolitan-district-council/wolverhampton","705542","Midwest Electrical Services Limited","I16990","23.38","R&M - Departmental planned (external)","130223432","17/08/2018","Maintenance Programme","Centralised R&M","R2001"
"Wolverhampton City Council","http://opendatacommunities.org/id/metropolitan-district-council/wolverhampton","705542","Midwest Electrical Services Limited","I17125","277.44","R&M - Departmental planned (external)","130224435","29/08/2018","Maintenance Programme","Centralised R&M","R2001"
"Wolverhampton City Council","http://opendatacommunities.org/id/metropolitan-district-council/wolverhampton","705542","Midwest Electrical Services Limited","I17218","29.30","R&M - Departmental planned (external)","130225699","29/08/2018","Maintenance Programme","Centralised R&M","R2001"
"Wolverhampton City Council","http://opendatacommunities.org/id/metropolitan-district-council/wolverhampton","705542","Midwest Electrical Services Limited","I17160","176.29","R&M - Departmental planned (external)","130224733","29/08/2018","Maintenance Programme","Centralised R&M","R2001"
"Wolverhampton City Council","http://opendatacommunities.org/id/metropolitan-district-council/wolverhampton","705542","Midwest Electrical Services Limited","I17222","23.38","R&M - Departmental planned (external)","130225703","29/08/2018","Maintenance Programme","Centralised R&M","R2001"
"Wolverhampton City Council","http://opendatacommunities.org/id/metropolitan-district-council/wolverhampton","705542","Midwest Electrical Services Limited","I17139","41.50","R&M - Departmental planned (external)","130224580","29/08/2018","Maintenance Programme","Centralised R&M","R2001"
"Wolverhampton City Council","http://opendatacommunities.org/id/metropolitan-district-council/wolverhampton","705542","Midwest Electrical Services Limited","I17241","20.62","R&M - Departmental planned (external)","130225824","29/08/2018","Maintenance Programme","Centralised R&M","R2001"
"Wolverhampton City Council","http://opendatacommunities.org/id/metropolitan-district-council/wolverhampton","705542","Midwest Electrical Services Limited","I17241","17.05","R&M - Departmental planned (external)","130225824","29/08/2018","Maintenance Programme","Centralised R&M","R2001"
"Wolverhampton City Council","http://opendatacommunities.org/id/metropolitan-district-council/wolverhampton","705542","Midwest Electrical Services Limited","I17050","23.38","R&M - Departmental planned (external)","130223723","22/08/2018","Maintenance Programme","Centralised R&M","R2001"
"Wolverhampton City Council","http://opendatacommunities.org/id/metropolitan-district-council/wolverhampton","705542","Midwest Electrical Services Limited","I17047","37.67","R&M - Departmental planned (external)","130223720","22/08/2018","Maintenance Programme","Centralised R&M","R2001"
"Wolverhampton City Council","http://opendatacommunities.org/id/metropolitan-district-council/wolverhampton","705542","Midwest Electrical Services Limited","I16879","5,125.00","R&M - Departmental planned (external)","130222013","01/08/2018","Maintenance Programme","Centralised R&M","R2001"
"Wolverhampton City Council","http://opendatacommunities.org/id/metropolitan-district-council/wolverhampton","705542","Midwest Electrical Services Limited","I16988","58.10","R&M - Departmental planned (external)","130223430","17/08/2018","Maintenance Programme","Centralised R&M","R2001"
"Wolverhampton City Council","http://opendatacommunities.org/id/metropolitan-district-council/wolverhampton","705542","Midwest Electrical Services Limited","I17223","35.48","R&M - Departmental planned (external)","130225704","29/08/2018","Maintenance Programme","Centralised R&M","R2001"
"Wolverhampton City Council","http://opendatacommunities.org/id/metropolitan-district-council/wolverhampton","705542","Midwest Electrical Services Limited","I17232","23.38","R&M - Departmental planned (external)","130225815","29/08/2018","Maintenance Programme","Centralised R&M","R2001"
"Wolverhampton City Council","http://opendatacommunities.org/id/metropolitan-district-council/wolverhampton","705542","Midwest Electrical Services Limited","I17110","23.38","R&M - Departmental planned (external)","130224275","29/08/2018","Facilities Management","Magistrates","R2001"
"Wolverhampton City Council","http://opendatacommunities.org/id/metropolitan-district-council/wolverhampton","705542","Midwest Electrical Services Limited","I17143","316.98","R&M - Departmental planned (external)","130224582","29/08/2018","Maintenance Programme","Centralised R&M","R2001"
"Wolverhampton City Council","http://opendatacommunities.org/id/metropolitan-district-council/wolverhampton","705542","Midwest Electrical Services Limited","I17217","253.41","R&M - Departmental planned (external)","130225698","29/08/2018","Maintenance Programme","Centralised R&M","R2001"
"Wolverhampton City Council","http://opendatacommunities.org/id/metropolitan-district-council/wolverhampton","705542","Midwest Electrical Services Limited","I17221","35.48","R&M - Departmental planned (external)","130225702","29/08/2018","Maintenance Programme","Centralised R&M","R2001"
"Wolverhampton City Council","http://opendatacommunities.org/id/metropolitan-district-council/wolverhampton","705542","Midwest Electrical Services Limited","I17235","38.05","R&M - Departmental planned (external)","130225818","29/08/2018","Maintenance Programme","Centralised R&M","R2001"
"Wolverhampton City Council","http://opendatacommunities.org/id/metropolitan-district-council/wolverhampton","705542","Midwest Electrical Services Limited","I16905","928.41","R&M - Departmental planned (external)","130222675","08/08/2018","Maintenance Programme","Centralised R&M","R2001"
"Wolverhampton City Council","http://opendatacommunities.org/id/metropolitan-district-council/wolverhampton","705542","Midwest Electrical Services Limited","I16903","55.93","R&M - Departmental planned (external)","130222673","08/08/2018","Facilities Management","Magistrates","R2001"
"Wolverhampton City Council","http://opendatacommunities.org/id/metropolitan-district-council/wolverhampton","705542","Midwest Electrical Services Limited","I16895","114.26","R&M - Departmental planned (external)","130222665","08/08/2018","Maintenance Programme","Centralised R&M","R2001"
"Wolverhampton City Council","http://opendatacommunities.org/id/metropolitan-district-council/wolverhampton","705542","Midwest Electrical Services Limited","I16902","75.25","R&M - Departmental planned (external)","130222672","08/08/2018","Facilities Management","Magistrates","R2001"
"Wolverhampton City Council","http://opendatacommunities.org/id/metropolitan-district-council/wolverhampton","705542","Midwest Electrical Services Limited","I16923","37.67","R&M - Departmental planned (external)","130222690","08/08/2018","Facilities Management","Hickman Avenue Depot","R2001"
"Wolverhampton City Council","http://opendatacommunities.org/id/metropolitan-district-council/wolverhampton","705542","Midwest Electrical Services Limited","I16912","29.34","R&M - Departmental planned (external)","130222681","08/08/2018","Facilities Management","Magistrates","R2001"
"Wolverhampton City Council","http://opendatacommunities.org/id/metropolitan-district-council/wolverhampton","705542","Midwest Electrical Services Limited","I16897","289.68","R&M - Departmental planned (external)","130222667","08/08/2018","Maintenance Programme","Centralised R&M","R2001"
"Wolverhampton City Council","http://opendatacommunities.org/id/metropolitan-district-council/wolverhampton","705542","Midwest Electrical Services Limited","I16931","43.82","R&M - Departmental planned (external)","130222698","08/08/2018","Maintenance Programme","Centralised R&M","R2001"
"Wolverhampton City Council","http://opendatacommunities.org/id/metropolitan-district-council/wolverhampton","705542","Midwest Electrical Services Limited","I16927","33.33","R&M - Departmental planned (external)","130222694","08/08/2018","Maintenance Programme","Centralised R&M","R2001"
"Wolverhampton City Council","http://opendatacommunities.org/id/metropolitan-district-council/wolverhampton","705542","Midwest Electrical Services Limited","I17179","2,555.00","R&M - Departmental planned (external)","130225294","31/08/2018","Maintenance Programme","Centralised R&M","R2001"
"Wolverhampton City Council","http://opendatacommunities.org/id/metropolitan-district-council/wolverhampton","705542","Midwest Electrical Services Limited","I17048","81.45","R&M - Departmental planned (external)","130223721","22/08/2018","Facilities Management","Caretakers Community Centre","R2001"
"Wolverhampton City Council","http://opendatacommunities.org/id/metropolitan-district-council/wolverhampton","705542","Midwest Electrical Services Limited","I17026","549.28","R&M - Departmental planned (external)","130223711","22/08/2018","Bereavement Services","Cemeteries","R2001"
"Wolverhampton City Council","http://opendatacommunities.org/id/metropolitan-district-council/wolverhampton","705542","Midwest Electrical Services Limited","I17109","23.38","R&M - Departmental planned (external)","130224274","29/08/2018","Maintenance Programme","Centralised R&M","R2001"
"Wolverhampton City Council","http://opendatacommunities.org/id/metropolitan-district-council/wolverhampton","705542","Midwest Electrical Services Limited","I17239","23.38","R&M - Departmental planned (external)","130225822","29/08/2018","Maintenance Programme","Centralised R&M","R2001"
"Wolverhampton City Council","http://opendatacommunities.org/id/metropolitan-district-council/wolverhampton","705542","Midwest Electrical Services Limited","I17219","28.16","R&M - Departmental planned (external)","130225700","29/08/2018","Maintenance Programme","Centralised R&M","R2001"
"Wolverhampton City Council","http://opendatacommunities.org/id/metropolitan-district-council/wolverhampton","705542","Midwest Electrical Services Limited","I16909","33.33","R&M - Departmental planned (external)","130225150","17/08/2018","Facilities Management","Magistrates","R2001"
"Wolverhampton City Council","http://opendatacommunities.org/id/metropolitan-district-council/wolverhampton","705542","Midwest Electrical Services Limited","I17005","1,702.56","R&M - Departmental planned (external)","130223566","17/08/2018","Maintenance Programme","Centralised R&M","R2001"
"Wolverhampton City Council","http://opendatacommunities.org/id/metropolitan-district-council/wolverhampton","705542","Midwest Electrical Services Limited","I17013","328.78","R&M - Departmental planned (external)","130223574","17/08/2018","Maintenance Programme","Centralised R&M","R2001"
"Wolverhampton City Council","http://opendatacommunities.org/id/metropolitan-district-council/wolverhampton","705542","Midwest Electrical Services Limited","I17118","56.51","R&M - Departmental planned (external)","130224283","29/08/2018","Maintenance Programme","Centralised R&M","R2001"
"Wolverhampton City Council","http://opendatacommunities.org/id/metropolitan-district-council/wolverhampton","705542","Midwest Electrical Services Limited","I17161","43.00","R&M - Departmental planned (external)","130224734","29/08/2018","Facilities Management","Bilston Town Hall","R2001"
"Wolverhampton City Council","http://opendatacommunities.org/id/metropolitan-district-council/wolverhampton","705542","Midwest Electrical Services Limited","I17163","104.44","R&M - Departmental planned (external)","130224736","29/08/2018","Maintenance Programme","Centralised R&M","R2001"
"Wolverhampton City Council","http://opendatacommunities.org/id/metropolitan-district-council/wolverhampton","705542","Midwest Electrical Services Limited","I17240","156.81","R&M - Departmental planned (external)","130225823","29/08/2018","Maintenance Programme","Centralised R&M","R2001"
"Wolverhampton City Council","http://opendatacommunities.org/id/metropolitan-district-council/wolverhampton","705542","Midwest Electrical Services Limited","I17238","23.38","R&M - Departmental planned (external)","130225821","29/08/2018","Maintenance Programme","Centralised R&M","R2001"
"Wolverhampton City Council","http://opendatacommunities.org/id/metropolitan-district-council/wolverhampton","705542","Midwest Electrical Services Limited","I17134","116.73","R&M - Departmental planned (external)","130224575","29/08/2018","Bereavement Services","Cemeteries","R2001"
"Wolverhampton City Council","http://opendatacommunities.org/id/metropolitan-district-council/wolverhampton","705542","Midwest Electrical Services Limited","284","-23.73","R&M - Departmental planned (external)","130223322","17/08/2018","Maintenance Programme","Centralised R&M","R2001"
"Wolverhampton City Council","http://opendatacommunities.org/id/metropolitan-district-council/wolverhampton","705542","Midwest Electrical Services Limited","I17009","116.51","R&M - Departmental planned (external)","130223570","17/08/2018","Maintenance Programme","Centralised R&M","R2001"
"Wolverhampton City Council","http://opendatacommunities.org/id/metropolitan-district-council/wolverhampton","705542","Midwest Electrical Services Limited","I16924","51.87","R&M - Departmental planned (external)","130222691","08/08/2018","Maintenance Programme","Centralised R&M","R2001"
"Wolverhampton City Council","http://opendatacommunities.org/id/metropolitan-district-council/wolverhampton","705542","Midwest Electrical Services Limited","I16930","31.27","R&M - Departmental planned (external)","130222697","08/08/2018","Maintenance Programme","Centralised R&M","R2001"
"Wolverhampton City Council","http://opendatacommunities.org/id/metropolitan-district-council/wolverhampton","705542","Midwest Electrical Services Limited","I16920","26.14","R&M - Departmental planned (external)","130222687","08/08/2018","Maintenance Programme","Centralised R&M","R2001"
"Wolverhampton City Council","http://opendatacommunities.org/id/metropolitan-district-council/wolverhampton","705542","Midwest Electrical Services Limited","I16926","88.06","R&M - Departmental planned (external)","130222693","08/08/2018","Bereavement Services","Cemeteries","R2001"
"Wolverhampton City Council","http://opendatacommunities.org/id/metropolitan-district-council/wolverhampton","705542","Midwest Electrical Services Limited","I16908","37.67","R&M - Departmental planned (external)","130222678","08/08/2018","Facilities Management","Magistrates","R2001"
"Wolverhampton City Council","http://opendatacommunities.org/id/metropolitan-district-council/wolverhampton","705542","Midwest Electrical Services Limited","I16911","74.56","R&M - Departmental planned (external)","130222680","08/08/2018","Facilities Management","Magistrates","R2001"
"Wolverhampton City Council","http://opendatacommunities.org/id/metropolitan-district-council/wolverhampton","705542","Midwest Electrical Services Limited","I16925","37.67","R&M - Departmental planned (external)","130222692","08/08/2018","Facilities Management","Culwell Street Depot","R2001"
"Wolverhampton City Council","http://opendatacommunities.org/id/metropolitan-district-council/wolverhampton","705542","Midwest Electrical Services Limited","I16896","470.23","R&M - Departmental planned (external)","130222666","08/08/2018","Maintenance Programme","Centralised R&M","R2001"
"Wolverhampton City Council","http://opendatacommunities.org/id/metropolitan-district-council/wolverhampton","705542","Midwest Electrical Services Limited","I17049","86.63","R&M - Departmental planned (external)","130223722","22/08/2018","Facilities Management","Caretakers Community Centre","R2001"
"Wolverhampton City Council","http://opendatacommunities.org/id/metropolitan-district-council/wolverhampton","705542","Midwest Electrical Services Limited","I17019","130.14","R&M - Departmental planned (external)","130223708","22/08/2018","Maintenance Programme","Civic Centre Repairs & Maintenance","R2001"
"Wolverhampton City Council","http://opendatacommunities.org/id/metropolitan-district-council/wolverhampton","705542","Midwest Electrical Services Limited","I17066","198.76","R&M - Departmental planned (external)","130224006","22/08/2018","Facilities Management","Caretakers Community Centre","R2001"
"Wolverhampton City Council","http://opendatacommunities.org/id/metropolitan-district-council/wolverhampton","705542","Midwest Electrical Services Limited","I17021","279.39","R&M - Departmental planned (external)","130223576","22/08/2018","Maintenance Programme","Centralised R&M","R2001"
"Wolverhampton City Council","http://opendatacommunities.org/id/metropolitan-district-council/wolverhampton","705542","Midwest Electrical Services Limited","I17119","26.32","R&M - Departmental planned (external)","130224284","29/08/2018","Maintenance Programme","Centralised R&M","R2001"
"Wolverhampton City Council","http://opendatacommunities.org/id/metropolitan-district-council/wolverhampton","705542","Midwest Electrical Services Limited","286","-37.67","R&M - Departmental planned (external)","130223323","17/08/2018","Facilities Management","Magistrates","R2001"
"Wolverhampton City Council","http://opendatacommunities.org/id/metropolitan-district-council/wolverhampton","705542","Midwest Electrical Services Limited","I17111","110.02","R&M - Departmental planned (external)","130224276","29/08/2018","Maintenance Programme","Centralised R&M","R2001"
"Wolverhampton City Council","http://opendatacommunities.org/id/metropolitan-district-council/wolverhampton","705542","Midwest Electrical Services Limited","I17115","55.59","R&M - Departmental planned (external)","130224280","29/08/2018","Facilities Management","Magistrates","R2001"
"Wolverhampton City Council","http://opendatacommunities.org/id/metropolitan-district-council/wolverhampton","705542","Midwest Electrical Services Limited","I17156","132.88","R&M - Departmental planned (external)","130224729","29/08/2018","Maintenance Programme","Centralised R&M","R2001"
"Wolverhampton City Council","http://opendatacommunities.org/id/metropolitan-district-council/wolverhampton","705542","Midwest Electrical Services Limited","I17162","77.29","R&M - Departmental planned (external)","130224735","29/08/2018","Maintenance Programme","Centralised R&M","R2001"
"Wolverhampton City Council","http://opendatacommunities.org/id/metropolitan-district-council/wolverhampton","705542","Midwest Electrical Services Limited","I17226","5,014.60","R&M - Departmental planned (external)","130225809","29/08/2018","Maintenance Programme","Centralised R&M","R2001"
"Wolverhampton City Council","http://opendatacommunities.org/id/metropolitan-district-council/wolverhampton","705542","Midwest Electrical Services Limited","I17157","100.67","R&M - Departmental planned (external)","130224730","29/08/2018","Maintenance Programme","Centralised R&M","R2001"
"Wolverhampton City Council","http://opendatacommunities.org/id/metropolitan-district-council/wolverhampton","705542","Midwest Electrical Services Limited","I17138","42.50","R&M - Departmental planned (external)","130224579","29/08/2018","Facilities Management","Hickman Avenue Depot","R2001"
"Wolverhampton City Council","http://opendatacommunities.org/id/metropolitan-district-council/wolverhampton","705542","Midwest Electrical Services Limited","I16916","189.76","R&M - Departmental planned (external)","130225151","17/08/2018","Maintenance Programme","Centralised R&M","R2001"
"Wolverhampton City Council","http://opendatacommunities.org/id/metropolitan-district-council/wolverhampton","705542","Midwest Electrical Services Limited","I17006","23.38","R&M - Departmental planned (external)","130223567","17/08/2018","Facilities Management","Hickman Avenue Depot","R2001"
"Wolverhampton City Council","http://opendatacommunities.org/id/metropolitan-district-council/wolverhampton","705542","Midwest Electrical Services Limited","I17010","192.42","R&M - Departmental planned (external)","130223571","17/08/2018","Corporate Asset Management","Future Space Decant Area","R2001"
"Wolverhampton City Council","http://opendatacommunities.org/id/metropolitan-district-council/wolverhampton","705542","Midwest Electrical Services Limited","I17014","46.76","R&M - Departmental planned (external)","130223575","17/08/2018","Maintenance Programme","Centralised R&M","R2001"
"Wolverhampton City Council","http://opendatacommunities.org/id/metropolitan-district-council/wolverhampton","705542","Midwest Electrical Services Limited","I17225","3,516.23","R&M - Departmental planned (external)","130225808","29/08/2018","Maintenance Programme","Centralised R&M","R2001"
"Wolverhampton City Council","http://opendatacommunities.org/id/metropolitan-district-council/wolverhampton","705542","Midwest Electrical Services Limited","I17225","352.37","R&M - Departmental planned (external)","130225808","29/08/2018","Maintenance Programme","Centralised R&M","R2001"
"Wolverhampton City Council","http://opendatacommunities.org/id/metropolitan-district-council/wolverhampton","705542","Midwest Electrical Services Limited","I17042","14,753.00","Construction and Conversion","130223715","22/08/2018","-","Capital Maintenance - Heating Pipework Upgrades","C1100"
"Wolverhampton City Council","http://opendatacommunities.org/id/metropolitan-district-council/wolverhampton","705542","Midwest Electrical Services Limited","I17053","37.67","R&M - Departmental planned (external)","130225153","22/08/2018","Maintenance Programme","Centralised R&M","R2001"
"Wolverhampton City Council","http://opendatacommunities.org/id/metropolitan-district-council/wolverhampton","705542","Midwest Electrical Services Limited","287","-37.67","R&M - Departmental planned (external)","130223707","22/08/2018","Facilities Management","Caretakers Community Centre","R2001"
"Wolverhampton City Council","http://opendatacommunities.org/id/metropolitan-district-council/wolverhampton","705542","Midwest Electrical Services Limited","I17024","30.38","R&M - Departmental planned (external)","130223710","22/08/2018","Maintenance Programme","Centralised R&M","R2001"
"Wolverhampton City Council","http://opendatacommunities.org/id/metropolitan-district-council/wolverhampton","705542","Midwest Electrical Services Limited","I16989","261.08","R&M - Departmental planned (external)","130223431","17/08/2018","Maintenance Programme","Centralised R&M","R2001"
"Wolverhampton City Council","http://opendatacommunities.org/id/metropolitan-district-council/wolverhampton","705542","Midwest Electrical Services Limited","I16816","70.14","R&M - Departmental planned (external)","130221362","01/08/2018","Bereavement Services","Cemeteries","R2001"
"Wolverhampton City Council","http://opendatacommunities.org/id/metropolitan-district-council/wolverhampton","705542","Midwest Electrical Services Limited","I17123","23.38","R&M - Departmental planned (external)","130224433","29/08/2018","Maintenance Programme","Centralised R&M","R2001"
"Wolverhampton City Council","http://opendatacommunities.org/id/metropolitan-district-council/wolverhampton","705542","Midwest Electrical Services Limited","I17113","35.31","R&M - Departmental planned (external)","130224278","29/08/2018","Facilities Management","Magistrates","R2001"
"Wolverhampton City Council","http://opendatacommunities.org/id/metropolitan-district-council/wolverhampton","705542","Midwest Electrical Services Limited","I17136","467.49","R&M - Departmental planned (external)","130224577","29/08/2018","Maintenance Programme","Centralised R&M","R2001"
"Wolverhampton City Council","http://opendatacommunities.org/id/metropolitan-district-council/wolverhampton","705542","Midwest Electrical Services Limited","I17236","23.38","R&M - Departmental planned (external)","130225819","29/08/2018","Maintenance Programme","Centralised R&M","R2001"
"Wolverhampton City Council","http://opendatacommunities.org/id/metropolitan-district-council/wolverhampton","705542","Midwest Electrical Services Limited","I17233","187.70","R&M - Departmental planned (external)","130225816","29/08/2018","Maintenance Programme","Centralised R&M","R2001"
"Wolverhampton City Council","http://opendatacommunities.org/id/metropolitan-district-council/wolverhampton","705542","Midwest Electrical Services Limited","I17107","37.67","R&M - Departmental planned (external)","130224273","29/08/2018","Maintenance Programme","Centralised R&M","R2001"
"Wolverhampton City Council","http://opendatacommunities.org/id/metropolitan-district-council/wolverhampton","705543","Arnold Clark Auto Ltd t/a M M Factors","567739-BI","19.16","Equipment - Purchase","190494685","10/08/2018","Fleet Services","Fleet Management","R4000"
"Wolverhampton City Council","http://opendatacommunities.org/id/metropolitan-district-council/wolverhampton","705548","Mike Tivey","SFH7/07/18","210.00","Services - Supplies and Services to service users","130223325","15/08/2018","Early Intervention","EIP Locality 8 � Children�s Village","R4408"
"Wolverhampton City Council","http://opendatacommunities.org/id/metropolitan-district-council/wolverhampton","705548","Mike Tivey","SFH8B/06/18C","579.50","Services - Supplies and Services to service users","130226679","31/08/2018","Early Intervention","EIP Locality 8 � Children�s Village","R4408"
"Wolverhampton City Council","http://opendatacommunities.org/id/metropolitan-district-council/wolverhampton","705548","Mike Tivey","SFH2/06/18","80.00","Services - Professional Fees","130224739","08/08/2018","Early Intervention","EIP Locality 2 � Bilston/Rocket Pool","R4400"
"Wolverhampton City Council","http://opendatacommunities.org/id/metropolitan-district-council/wolverhampton","705548","Mike Tivey","SFH8/07/18","530.00","Services - Supplies and Services to service users","130223326","15/08/2018","Early Intervention","EIP Locality 8 � Children�s Village","R4408"
"Wolverhampton City Council","http://opendatacommunities.org/id/metropolitan-district-council/wolverhampton","705548","Mike Tivey","SFH2/07/18","120.00","Services - Professional Fees","130224740","15/08/2018","Early Intervention","EIP Locality 2 � Bilston/Rocket Pool","R4400"
"Wolverhampton City Council","http://opendatacommunities.org/id/metropolitan-district-council/wolverhampton","705548","Mike Tivey","SFH1/7/2018","210.00","Services - Professional Fees","130226006","17/08/2018","Early Intervention","EIP Locality 1 - Eastfields","R4400"
"Wolverhampton City Council","http://opendatacommunities.org/id/metropolitan-district-council/wolverhampton","705592","Mitchell Diesel Limited","137490","-13.48","Equipment - Purchase","190496257","24/08/2018","Fleet Services","Fleet Management","R4000"
"Wolverhampton City Council","http://opendatacommunities.org/id/metropolitan-district-council/wolverhampton","705592","Mitchell Diesel Limited","137490","-13.48","Equipment - Purchase","190496257","24/08/2018","Fleet Services","Fleet Management","R4000"
"Wolverhampton City Council","http://opendatacommunities.org/id/metropolitan-district-council/wolverhampton","705592","Mitchell Diesel Limited","137369","169.17","Equipment - Purchase","190493218","03/08/2018","Fleet Services","Fleet Management","R4000"
"Wolverhampton City Council","http://opendatacommunities.org/id/metropolitan-district-council/wolverhampton","705592","Mitchell Diesel Limited","137358","19.01","Equipment - Purchase","190493217","03/08/2018","Fleet Services","Fleet Management","R4000"
"Wolverhampton City Council","http://opendatacommunities.org/id/metropolitan-district-council/wolverhampton","705592","Mitchell Diesel Limited","137358","19.01","Equipment - Purchase","190493217","03/08/2018","Fleet Services","Fleet Management","R4000"
"Wolverhampton City Council","http://opendatacommunities.org/id/metropolitan-district-council/wolverhampton","705592","Mitchell Diesel Limited","137273","15.98","Equipment - Purchase","190493216","03/08/2018","Fleet Services","Fleet Management","R4000"
"Wolverhampton City Council","http://opendatacommunities.org/id/metropolitan-district-council/wolverhampton","705592","Mitchell Diesel Limited","137273","9.06","Equipment - Purchase","190493216","03/08/2018","Fleet Services","Fleet Management","R4000"
"Wolverhampton City Council","http://opendatacommunities.org/id/metropolitan-district-council/wolverhampton","705592","Mitchell Diesel Limited","137273","15.98","Equipment - Purchase","190493216","03/08/2018","Fleet Services","Fleet Management","R4000"
"Wolverhampton City Council","http://opendatacommunities.org/id/metropolitan-district-council/wolverhampton","705592","Mitchell Diesel Limited","136965","8.48","Equipment - Purchase","190500128","29/08/2018","Fleet Services","Fleet Management","R4000"
"Wolverhampton City Council","http://opendatacommunities.org/id/metropolitan-district-council/wolverhampton","705592","Mitchell Diesel Limited","136965","6.54","Equipment - Purchase","190500128","29/08/2018","Fleet Services","Fleet Management","R4000"
"Wolverhampton City Council","http://opendatacommunities.org/id/metropolitan-district-council/wolverhampton","705592","Mitchell Diesel Limited","136965","8.95","Equipment - Purchase","190500128","29/08/2018","Fleet Services","Fleet Management","R4000"
"Wolverhampton City Council","http://opendatacommunities.org/id/metropolitan-district-council/wolverhampton","705592","Mitchell Diesel Limited","136965","30.04","Equipment - Purchase","190500128","29/08/2018","Fleet Services","Fleet Management","R4000"
"Wolverhampton City Council","http://opendatacommunities.org/id/metropolitan-district-council/wolverhampton","705592","Mitchell Diesel Limited","136965","39.45","Equipment - Purchase","190500128","29/08/2018","Fleet Services","Fleet Management","R4000"
"Wolverhampton City Council","http://opendatacommunities.org/id/metropolitan-district-council/wolverhampton","705592","Mitchell Diesel Limited","136965","626.13","Equipment - Purchase","190500128","29/08/2018","Fleet Services","Fleet Management","R4000"
"Wolverhampton City Council","http://opendatacommunities.org/id/metropolitan-district-council/wolverhampton","705592","Mitchell Diesel Limited","136965","8.96","Equipment - Purchase","190500128","29/08/2018","Fleet Services","Fleet Management","R4000"
"Wolverhampton City Council","http://opendatacommunities.org/id/metropolitan-district-council/wolverhampton","705592","Mitchell Diesel Limited","137852","18.98","Equipment - Purchase","190498753","24/08/2018","Fleet Services","Fleet Management","R4000"
"Wolverhampton City Council","http://opendatacommunities.org/id/metropolitan-district-council/wolverhampton","705592","Mitchell Diesel Limited","137852","18.98","Equipment - Purchase","190498753","24/08/2018","Fleet Services","Fleet Management","R4000"
"Wolverhampton City Council","http://opendatacommunities.org/id/metropolitan-district-council/wolverhampton","705592","Mitchell Diesel Limited","137852","4.34","Equipment - Purchase","190498753","24/08/2018","Fleet Services","Fleet Management","R4000"
"Wolverhampton City Council","http://opendatacommunities.org/id/metropolitan-district-council/wolverhampton","705609","Mobile Mini UK Limited","7000909758","43.20","Equipment - Hire","130224964","31/08/2018","Bereavement Services","Bereavement services - Grounds maintenance","R4001"
"Wolverhampton City Council","http://opendatacommunities.org/id/metropolitan-district-council/wolverhampton","705609","Mobile Mini UK Limited","7000909757","43.20","Equipment - Hire","130223433","15/08/2018","Leisure Services","Aldersley Leisure Village","R4001"
"Wolverhampton City Council","http://opendatacommunities.org/id/metropolitan-district-council/wolverhampton","705609","Mobile Mini UK Limited","7000910680","101.60","Equipment - Hire","130223579","17/08/2018","Environmental Maintenance","Parks - Ranger Service","R4001"
"Wolverhampton City Council","http://opendatacommunities.org/id/metropolitan-district-council/wolverhampton","705609","Mobile Mini UK Limited","7000873317","51.80","Equipment - Hire","130219740","01/08/2018","Bereavement Services","Cemeteries","R4001"
"Wolverhampton City Council","http://opendatacommunities.org/id/metropolitan-district-council/wolverhampton","705609","Mobile Mini UK Limited","7000878635","43.20","Equipment - Hire","130220393","31/08/2018","Bereavement Services","Bereavement services - Grounds maintenance","R4001"
"Wolverhampton City Council","http://opendatacommunities.org/id/metropolitan-district-council/wolverhampton","705609","Mobile Mini UK Limited","7000816827","43.20","Equipment - Hire","130214780","31/08/2018","Bereavement Services","Bereavement services - Grounds maintenance","R4001"
"Wolverhampton City Council","http://opendatacommunities.org/id/metropolitan-district-council/wolverhampton","705609","Mobile Mini UK Limited","7000904477","50.00","Hire of Plant","130222878","10/08/2018","Environmental Maintenance","Ground Maintenance East","R3201"
"Wolverhampton City Council","http://opendatacommunities.org/id/metropolitan-district-council/wolverhampton","705609","Mobile Mini UK Limited","7000904478","51.80","Equipment - Hire","130222879","10/08/2018","Bereavement Services","Cemeteries","R4001"
"Wolverhampton City Council","http://opendatacommunities.org/id/metropolitan-district-council/wolverhampton","705634","Morelock Signs Limited","0000205868","417.32","Construction and Conversion","130224965","08/08/2018","-","Active Travel Programme","C1100"
"Wolverhampton City Council","http://opendatacommunities.org/id/metropolitan-district-council/wolverhampton","705634","Morelock Signs Limited","0000210203","242.76","Materials","130222699","08/08/2018","Highways Maintenance","Signs Non Illuminated","R4007"
"Wolverhampton City Council","http://opendatacommunities.org/id/metropolitan-district-council/wolverhampton","705634","Morelock Signs Limited","0000209804","18.64","Materials","130222015","01/08/2018","Street Lighting","Signs Illuminated","R4007"
"Wolverhampton City Council","http://opendatacommunities.org/id/metropolitan-district-council/wolverhampton","705634","Morelock Signs Limited","0000209804","114.40","Equipment - Purchase","130222015","01/08/2018","Street Lighting","Signs Illuminated","R4000"
"Wolverhampton City Council","http://opendatacommunities.org/id/metropolitan-district-council/wolverhampton","705634","Morelock Signs Limited","0000210726","32.88","Construction and Conversion","130224137","22/08/2018","-","Safety Programme","C1100"
"Wolverhampton City Council","http://opendatacommunities.org/id/metropolitan-district-council/wolverhampton","705634","Morelock Signs Limited","0000210724","111.98","TPP - Maintenance on Principal Roads","130224287","22/08/2018","Transportation","Bridges & Subways","R5700"
"Wolverhampton City Council","http://opendatacommunities.org/id/metropolitan-district-council/wolverhampton","705634","Morelock Signs Limited","0000209805","64.44","Construction and Conversion","130221814","01/08/2018","-","Safety Programme","C1100"
"Wolverhampton City Council","http://opendatacommunities.org/id/metropolitan-district-council/wolverhampton","705634","Morelock Signs Limited","0000209803","39.26","Materials","130222014","01/08/2018","Street Lighting","Signs Illuminated","R4007"
"Wolverhampton City Council","http://opendatacommunities.org/id/metropolitan-district-council/wolverhampton","705640","Morris & Alexander Limited","26111","2,040.00","Equipment - Purchase","130223580","08/08/2018","Independent Living Service","Independent Living Service","R4000"
"Wolverhampton City Council","http://opendatacommunities.org/id/metropolitan-district-council/wolverhampton","705640","Morris & Alexander Limited","26111","238.80","Equipment - Purchase","130223580","08/08/2018","Independent Living Service","Independent Living Service","R4000"
"Wolverhampton City Council","http://opendatacommunities.org/id/metropolitan-district-council/wolverhampton","705640","Morris & Alexander Limited","26111","266.40","Equipment - Purchase","130223580","08/08/2018","Independent Living Service","Independent Living Service","R4000"
"Wolverhampton City Council","http://opendatacommunities.org/id/metropolitan-district-council/wolverhampton","705640","Morris & Alexander Limited","26111","216.00","Equipment - Purchase","130223580","08/08/2018","Independent Living Service","Independent Living Service","R4000"
"Wolverhampton City Council","http://opendatacommunities.org/id/metropolitan-district-council/wolverhampton","705640","Morris & Alexander Limited","26111","237.00","Equipment - Purchase","130223580","08/08/2018","Independent Living Service","Independent Living Service","R4000"
"Wolverhampton City Council","http://opendatacommunities.org/id/metropolitan-district-council/wolverhampton","705640","Morris & Alexander Limited","26111","2,173.00","Equipment - Purchase","130223580","08/08/2018","Independent Living Service","Independent Living Service","R4000"
"Wolverhampton City Council","http://opendatacommunities.org/id/metropolitan-district-council/wolverhampton","705646","Mossvale Maint & Sealing Servs Limited","58724","400.00","TPP - Street Cleansing","130224585","08/08/2018","Highways Maintenance","Brook course, Culvert & Subway Maintenance","R5026"
"Wolverhampton City Council","http://opendatacommunities.org/id/metropolitan-district-council/wolverhampton","705653","Mott Macdonald Limited","IN00386883","5,806.50","Construction and Conversion","130222451","01/08/2018","-","GF - Accessing Growth Fund","C1100"
"Wolverhampton City Council","http://opendatacommunities.org/id/metropolitan-district-council/wolverhampton","705748","Nacro","SI0000000285","333,333.33","TPP - Public Health Contracts","130222155","03/08/2018","Healthy Life Expectancy","Alcohol and Drug","R5060"
"Wolverhampton City Council","http://opendatacommunities.org/id/metropolitan-district-council/wolverhampton","705751","Nalco Limited","9400480187","416.62","R&M - Departmental planned (external)","130222348","08/08/2018","Maintenance Programme","Civic Centre Repairs & Maintenance","R2001"
"Wolverhampton City Council","http://opendatacommunities.org/id/metropolitan-district-council/wolverhampton","705751","Nalco Limited","9400481536","670.00","R&M - Departmental planned (external)","130224741","29/08/2018","Maintenance Programme","Civic Centre Repairs & Maintenance","R2001"
"Wolverhampton City Council","http://opendatacommunities.org/id/metropolitan-district-council/wolverhampton","705769","Nat Soc Allotments Leis Gardenersltd","S973218/19","55.00","Subscriptions","130224966","29/08/2018","Environmental Maintenance","Allotments","R4701"
"Wolverhampton City Council","http://opendatacommunities.org/id/metropolitan-district-council/wolverhampton","705816","NCFE","SI00057438","1,154.00","Exam Expenses (Non-Employee)","130225599","29/08/2018","Adult Education","Discretionary Fund","R4630"
"Wolverhampton City Council","http://opendatacommunities.org/id/metropolitan-district-council/wolverhampton","705816","NCFE","SI00053636REISSUE","927.00","Exam Expenses (Non-Employee)","130225432","29/08/2018","Adult Education","Discretionary Fund","R4630"
"Wolverhampton City Council","http://opendatacommunities.org/id/metropolitan-district-council/wolverhampton","705838","Network Rail Infrastructure Ltd","1231137","18,617.63","External Professional Fees","130223434","01/08/2018","-","GF - Interchange - Ph2 Train Station/MSCP/Metro Extension","C6002"
"Wolverhampton City Council","http://opendatacommunities.org/id/metropolitan-district-council/wolverhampton","705838","Network Rail Infrastructure Ltd","1230032","17,123.61","External Professional Fees","130223581","01/08/2018","-","GF - Interchange - Ph2 Train Station/MSCP/Metro Extension","C6002"
"Wolverhampton City Council","http://opendatacommunities.org/id/metropolitan-district-council/wolverhampton","705838","Network Rail Infrastructure Ltd","1232411","18,490.69","TPP - Maintenance on Principal Roads","130224967","29/08/2018","Transportation","Bridges & Subways","R5700"
"Wolverhampton City Council","http://opendatacommunities.org/id/metropolitan-district-council/wolverhampton","705849","New Park Village Activities Network","003","1,500.00","TPP - Payments to voluntary groups","130224742","08/08/2018","Headstart","Headstart - Commissioned Activity","R5200"
"Wolverhampton City Council","http://opendatacommunities.org/id/metropolitan-district-council/wolverhampton","705854","Newauto Limited T/A Mogo (UK)","T28411","7,129.00","Signage and Labels","130224289","22/08/2018","Licensing","Private Hire Vehicles","R4009"
"Wolverhampton City Council","http://opendatacommunities.org/id/metropolitan-district-council/wolverhampton","705854","Newauto Limited T/A Mogo (UK)","T28382","2,619.00","Signage and Labels","130222884","08/08/2018","Licensing","Private Hire Vehicles","R4009"
"Wolverhampton City Council","http://opendatacommunities.org/id/metropolitan-district-council/wolverhampton","705854","Newauto Limited T/A Mogo (UK)","T28382","19.90","Signage and Labels","130222884","08/08/2018","Licensing","Private Hire Vehicles","R4009"
"Wolverhampton City Council","http://opendatacommunities.org/id/metropolitan-district-council/wolverhampton","705856","Newbridge Surgery","M2018Q115SHCIFBQ","80.00","TPP - Public Health Contracts","190492044","01/08/2018","Starting and Developing Well","Sexual Health","R5060"
"Wolverhampton City Council","http://opendatacommunities.org/id/metropolitan-district-council/wolverhampton","705856","Newbridge Surgery","M2018Q1.15SHIURFQ","100.00","TPP - Public Health Contracts","190492047","01/08/2018","Starting and Developing Well","Sexual Health","R5060"
"Wolverhampton City Council","http://opendatacommunities.org/id/metropolitan-district-council/wolverhampton","705856","Newbridge Surgery","M2018Q115SHCIFIQ","150.00","TPP - Public Health Contracts","190492042","01/08/2018","Starting and Developing Well","Sexual Health","R5060"
"Wolverhampton City Council","http://opendatacommunities.org/id/metropolitan-district-council/wolverhampton","705856","Newbridge Surgery","M2018Q1.15SHIUDRQ","150.00","TPP - Public Health Contracts","190492046","01/08/2018","Starting and Developing Well","Sexual Health","R5060"
"Wolverhampton City Council","http://opendatacommunities.org/id/metropolitan-district-council/wolverhampton","705856","Newbridge Surgery","M2018Q115SHCIFRQ","270.00","TPP - Public Health Contracts","190492043","01/08/2018","Starting and Developing Well","Sexual Health","R5060"
"Wolverhampton City Council","http://opendatacommunities.org/id/metropolitan-district-council/wolverhampton","705856","Newbridge Surgery","M2018Q115SHCHLAQ","8.00","TPP - Public Health Contracts","190492048","01/08/2018","Starting and Developing Well","Sexual Health","R5060"
"Wolverhampton City Council","http://opendatacommunities.org/id/metropolitan-district-council/wolverhampton","705856","Newbridge Surgery","M2018Q115SHIUDFQ","300.00","TPP - Public Health Contracts","190492045","01/08/2018","Starting and Developing Well","Sexual Health","R5060"
"Wolverhampton City Council","http://opendatacommunities.org/id/metropolitan-district-council/wolverhampton","705904","Nisbets PLC","17173393","22.55","Equipment - Purchase","130223327","15/08/2018","Learning Disability Provider","City Links","R4000"
"Wolverhampton City Council","http://opendatacommunities.org/id/metropolitan-district-council/wolverhampton","705907","NJB Physiotherapy Limited","61006","168.00","Services - Professional Fees","130225712","22/08/2018","Human Resources","HR Advice","R4400"
"Wolverhampton City Council","http://opendatacommunities.org/id/metropolitan-district-council/wolverhampton","705907","NJB Physiotherapy Limited","60774","168.00","Services - Professional Fees","130224746","15/08/2018","Human Resources","HR Advice","R4400"
"Wolverhampton City Council","http://opendatacommunities.org/id/metropolitan-district-council/wolverhampton","705907","NJB Physiotherapy Limited","60957","85.00","Services - Professional Fees","130225707","15/08/2018","Human Resources","HR Advice","R4400"
"Wolverhampton City Council","http://opendatacommunities.org/id/metropolitan-district-council/wolverhampton","705907","NJB Physiotherapy Limited","60662","50.00","Services - Professional Fees","130222701","01/08/2018","Human Resources","HR Advice","R4400"
"Wolverhampton City Council","http://opendatacommunities.org/id/metropolitan-district-council/wolverhampton","705907","NJB Physiotherapy Limited","60777","85.00","Services - Professional Fees","130224749","08/08/2018","Human Resources","HR Advice","R4400"
"Wolverhampton City Council","http://opendatacommunities.org/id/metropolitan-district-council/wolverhampton","705907","NJB Physiotherapy Limited","60866","85.00","Services - Professional Fees","130224759","08/08/2018","Human Resources","HR Advice","R4400"
"Wolverhampton City Council","http://opendatacommunities.org/id/metropolitan-district-council/wolverhampton","705907","NJB Physiotherapy Limited","60773","105.00","Services - Professional Fees","130224745","08/08/2018","Human Resources","HR Advice","R4400"
"Wolverhampton City Council","http://opendatacommunities.org/id/metropolitan-district-council/wolverhampton","705907","NJB Physiotherapy Limited","60865","85.00","Services - Professional Fees","130224587","08/08/2018","Human Resources","HR Advice","R4400"
"Wolverhampton City Council","http://opendatacommunities.org/id/metropolitan-district-council/wolverhampton","705907","NJB Physiotherapy Limited","61072","85.00","Services - Professional Fees","130226298","24/08/2018","Human Resources","HR Advice","R4400"
"Wolverhampton City Council","http://opendatacommunities.org/id/metropolitan-district-council/wolverhampton","705907","NJB Physiotherapy Limited","61040","85.00","Services - Professional Fees","130226289","24/08/2018","Human Resources","HR Advice","R4400"
"Wolverhampton City Council","http://opendatacommunities.org/id/metropolitan-district-council/wolverhampton","705907","NJB Physiotherapy Limited","60958","11.00","Services - Professional Fees","130225708","15/08/2018","Human Resources","HR Advice","R4400"
"Wolverhampton City Council","http://opendatacommunities.org/id/metropolitan-district-council/wolverhampton","705907","NJB Physiotherapy Limited","60841","84.00","Services - Professional Fees","130224754","15/08/2018","Human Resources","HR Advice","R4400"
"Wolverhampton City Council","http://opendatacommunities.org/id/metropolitan-district-council/wolverhampton","705907","NJB Physiotherapy Limited","60846","84.00","Services - Professional Fees","130224758","15/08/2018","Human Resources","HR Advice","R4400"
"Wolverhampton City Council","http://opendatacommunities.org/id/metropolitan-district-council/wolverhampton","705907","NJB Physiotherapy Limited","61004","168.00","Services - Professional Fees","130225710","22/08/2018","Human Resources","HR Advice","R4400"
"Wolverhampton City Council","http://opendatacommunities.org/id/metropolitan-district-council/wolverhampton","705907","NJB Physiotherapy Limited","60674","147.00","Services - Professional Fees","130222705","01/08/2018","Human Resources","HR Advice","R4400"
"Wolverhampton City Council","http://opendatacommunities.org/id/metropolitan-district-council/wolverhampton","705907","NJB Physiotherapy Limited","61027","168.00","Services - Professional Fees","130226288","29/08/2018","Human Resources","HR Advice","R4400"
"Wolverhampton City Council","http://opendatacommunities.org/id/metropolitan-district-council/wolverhampton","705907","NJB Physiotherapy Limited","60493","105.00","Services - Professional Fees","130221816","22/08/2018","Human Resources","HR Advice","R4400"
"Wolverhampton City Council","http://opendatacommunities.org/id/metropolitan-district-council/wolverhampton","705907","NJB Physiotherapy Limited","60864","85.00","Services - Professional Fees","130224586","08/08/2018","Human Resources","HR Advice","R4400"
"Wolverhampton City Council","http://opendatacommunities.org/id/metropolitan-district-council/wolverhampton","705907","NJB Physiotherapy Limited","60673","147.00","Services - Professional Fees","130222704","08/08/2018","Human Resources","HR Advice","R4400"
"Wolverhampton City Council","http://opendatacommunities.org/id/metropolitan-district-council/wolverhampton","705907","NJB Physiotherapy Limited","60776","85.00","Services - Professional Fees","130224748","08/08/2018","Human Resources","HR Advice","R4400"
"Wolverhampton City Council","http://opendatacommunities.org/id/metropolitan-district-council/wolverhampton","705907","NJB Physiotherapy Limited","60793","85.00","Services - Professional Fees","130224752","08/08/2018","Human Resources","HR Advice","R4400"
"Wolverhampton City Council","http://opendatacommunities.org/id/metropolitan-district-council/wolverhampton","705907","NJB Physiotherapy Limited","61064","85.00","Services - Professional Fees","130226294","24/08/2018","Human Resources","HR Advice","R4400"
"Wolverhampton City Council","http://opendatacommunities.org/id/metropolitan-district-council/wolverhampton","705907","NJB Physiotherapy Limited","60956","11.00","Services - Professional Fees","130225706","15/08/2018","Human Resources","HR Advice","R4400"
"Wolverhampton City Council","http://opendatacommunities.org/id/metropolitan-district-council/wolverhampton","705907","NJB Physiotherapy Limited","60840","84.00","Services - Professional Fees","130224753","15/08/2018","Human Resources","HR Advice","R4400"
"Wolverhampton City Council","http://opendatacommunities.org/id/metropolitan-district-council/wolverhampton","705907","NJB Physiotherapy Limited","60842","84.00","Services - Professional Fees","130224755","15/08/2018","Human Resources","HR Advice","R4400"
"Wolverhampton City Council","http://opendatacommunities.org/id/metropolitan-district-council/wolverhampton","705907","NJB Physiotherapy Limited","60680","210.00","Services - Professional Fees","130222706","01/08/2018","Human Resources","HR Advice","R4400"
"Wolverhampton City Council","http://opendatacommunities.org/id/metropolitan-district-council/wolverhampton","705907","NJB Physiotherapy Limited","60602","168.00","Services - Professional Fees","130221820","08/08/2018","Human Resources","HR Advice","R4400"
"Wolverhampton City Council","http://opendatacommunities.org/id/metropolitan-district-council/wolverhampton","705907","NJB Physiotherapy Limited","60664","85.00","Services - Professional Fees","130222703","08/08/2018","Human Resources","HR Advice","R4400"
"Wolverhampton City Council","http://opendatacommunities.org/id/metropolitan-district-council/wolverhampton","705907","NJB Physiotherapy Limited","61063","85.00","Services - Professional Fees","130226293","24/08/2018","Human Resources","HR Advice","R4400"
"Wolverhampton City Council","http://opendatacommunities.org/id/metropolitan-district-council/wolverhampton","705907","NJB Physiotherapy Limited","60792","85.00","Services - Professional Fees","130224751","08/08/2018","Human Resources","HR Advice","R4400"
"Wolverhampton City Council","http://opendatacommunities.org/id/metropolitan-district-council/wolverhampton","705907","NJB Physiotherapy Limited","60775","85.00","Services - Professional Fees","130224747","08/08/2018","Human Resources","HR Advice","R4400"
"Wolverhampton City Council","http://opendatacommunities.org/id/metropolitan-district-council/wolverhampton","705907","NJB Physiotherapy Limited","61005","84.00","Services - Professional Fees","130225711","22/08/2018","Human Resources","HR Advice","R4400"
"Wolverhampton City Council","http://opendatacommunities.org/id/metropolitan-district-council/wolverhampton","705907","NJB Physiotherapy Limited","60988","85.00","Services - Professional Fees","130225709","22/08/2018","Human Resources","HR Advice","R4400"
"Wolverhampton City Council","http://opendatacommunities.org/id/metropolitan-district-council/wolverhampton","705907","NJB Physiotherapy Limited","60772","11.00","Services - Professional Fees","130224744","15/08/2018","Human Resources","HR Advice","R4400"
"Wolverhampton City Council","http://opendatacommunities.org/id/metropolitan-district-council/wolverhampton","705907","NJB Physiotherapy Limited","60843","147.00","Services - Professional Fees","130224756","15/08/2018","Human Resources","HR Advice","R4400"
"Wolverhampton City Council","http://opendatacommunities.org/id/metropolitan-district-council/wolverhampton","705907","NJB Physiotherapy Limited","60845","63.00","Services - Professional Fees","130224757","15/08/2018","Human Resources","HR Advice","R4400"
"Wolverhampton City Council","http://opendatacommunities.org/id/metropolitan-district-council/wolverhampton","705907","NJB Physiotherapy Limited","60663","85.00","Services - Professional Fees","130222702","01/08/2018","Human Resources","HR Advice","R4400"
"Wolverhampton City Council","http://opendatacommunities.org/id/metropolitan-district-council/wolverhampton","705907","NJB Physiotherapy Limited","61041","85.00","Services - Professional Fees","130226290","24/08/2018","Human Resources","HR Advice","R4400"
"Wolverhampton City Council","http://opendatacommunities.org/id/metropolitan-district-council/wolverhampton","705907","NJB Physiotherapy Limited","60200","21.00","Services - Professional Fees","130224743","08/08/2018","Human Resources","HR Advice","R4400"
"Wolverhampton City Council","http://opendatacommunities.org/id/metropolitan-district-council/wolverhampton","705907","NJB Physiotherapy Limited","60791","85.00","Services - Professional Fees","130224750","08/08/2018","Human Resources","HR Advice","R4400"
"Wolverhampton City Council","http://opendatacommunities.org/id/metropolitan-district-council/wolverhampton","705907","NJB Physiotherapy Limited","60603","210.00","Services - Professional Fees","130221821","08/08/2018","Human Resources","HR Advice","R4400"
"Wolverhampton City Council","http://opendatacommunities.org/id/metropolitan-district-council/wolverhampton","705907","NJB Physiotherapy Limited","60661","85.00","Services - Professional Fees","130222700","08/08/2018","Human Resources","HR Advice","R4400"
"Wolverhampton City Council","http://opendatacommunities.org/id/metropolitan-district-council/wolverhampton","705907","NJB Physiotherapy Limited","60867","85.00","Services - Professional Fees","130224588","08/08/2018","Human Resources","HR Advice","R4400"
"Wolverhampton City Council","http://opendatacommunities.org/id/metropolitan-district-council/wolverhampton","705913","No 5 Chambers Limited","705","300.00","Services - Professional Fees","130225714","17/08/2018","Legal Services","Centralised External Legal Costs","R4400"
"Wolverhampton City Council","http://opendatacommunities.org/id/metropolitan-district-council/wolverhampton","705913","No 5 Chambers Limited","244","500.00","Services - Professional Fees","130224760","08/08/2018","Legal Services","Centralised External Legal Costs","R4400"
"Wolverhampton City Council","http://opendatacommunities.org/id/metropolitan-district-council/wolverhampton","705913","No 5 Chambers Limited","460","250.00","Acquisition of Land and Buildings","130225154","08/08/2018","-","Housing General Fund General Schemes - Empty Properties Strategy","C1000"
"Wolverhampton City Council","http://opendatacommunities.org/id/metropolitan-district-council/wolverhampton","705913","No 5 Chambers Limited","8331","1,200.00","Services - Professional Fees","130226299","22/08/2018","Public Protection","EHTS Operational Costs","R4400"
"Wolverhampton City Council","http://opendatacommunities.org/id/metropolitan-district-council/wolverhampton","705913","No 5 Chambers Limited","622","1,350.00","Acquisition of Land and Buildings","130225155","15/08/2018","-","Housing General Fund General Schemes - Empty Properties Strategy","C1000"
"Wolverhampton City Council","http://opendatacommunities.org/id/metropolitan-district-council/wolverhampton","705913","No 5 Chambers Limited","337","2,020.00","Services - Professional Fees","130225713","17/08/2018","Legal Services","Centralised External Legal Costs","R4400"
"Wolverhampton City Council","http://opendatacommunities.org/id/metropolitan-district-council/wolverhampton","705915","Noah�s Ark Environmental Services Ltd","WV1807","778.50","Services - Professional Fees","130224761","08/08/2018","Public Protection","Pest Control & Animal Welfare","R4400"
"Wolverhampton City Council","http://opendatacommunities.org/id/metropolitan-district-council/wolverhampton","705916","Nobisco Limited","548046","61.80","Cleaning Supplies and Materials","130225160","15/08/2018","Leisure Services","Bert Williams Leisure Centre","R2705"
"Wolverhampton City Council","http://opendatacommunities.org/id/metropolitan-district-council/wolverhampton","705916","Nobisco Limited","549095","1,203.21","Cleaning Supplies and Materials","130226304","24/08/2018","Cleaning","Cleaning of Buildings - General","R2705"
"Wolverhampton City Council","http://opendatacommunities.org/id/metropolitan-district-council/wolverhampton","705916","Nobisco Limited","547289","3.74","Cleaning Supplies and Materials","130224290","08/08/2018","Transportation","Passenger Transport - General","R2705"
"Wolverhampton City Council","http://opendatacommunities.org/id/metropolitan-district-council/wolverhampton","705916","Nobisco Limited","547281","274.39","Cleaning Supplies and Materials","130224138","08/08/2018","Catering","Civic Centre Catering","R2705"
"Wolverhampton City Council","http://opendatacommunities.org/id/metropolitan-district-council/wolverhampton","705916","Nobisco Limited","549769","871.14","Cleaning Supplies and Materials","130226833","31/08/2018","Learning Disability Provider","Duke Street Bungalows","R2705"
"Wolverhampton City Council","http://opendatacommunities.org/id/metropolitan-district-council/wolverhampton","705916","Nobisco Limited","549610","34.62","Cleaning Supplies and Materials","130226683","31/08/2018","Visitor Economy","Bantock - Tea Rooms","R2705"
"Wolverhampton City Council","http://opendatacommunities.org/id/metropolitan-district-council/wolverhampton","705916","Nobisco Limited","547806","94.43","Cleaning Supplies and Materials","130224765","10/08/2018","Learning Disability Provider","Ernest Bold Court","R2705"
"Wolverhampton City Council","http://opendatacommunities.org/id/metropolitan-district-council/wolverhampton","705916","Nobisco Limited","546898","32.00","Cleaning Supplies and Materials","130223731","03/08/2018","Leisure Services","Bert Williams Leisure Centre Caf�","R2705"
"Wolverhampton City Council","http://opendatacommunities.org/id/metropolitan-district-council/wolverhampton","705916","Nobisco Limited","546598","222.08","Cleaning Supplies and Materials","130223582","15/08/2018","Older People Provider Services","Bradley Lodge Resource Centre","R2705"
"Wolverhampton City Council","http://opendatacommunities.org/id/metropolitan-district-council/wolverhampton","705916","Nobisco Limited","548191","525.36","Cleaning Supplies and Materials","130225300","15/08/2018","Environmental Maintenance","Ground Maintenance East","R2705"
"Wolverhampton City Council","http://opendatacommunities.org/id/metropolitan-district-council/wolverhampton","705916","Nobisco Limited","547683","29.28","Cleaning Supplies and Materials","130224591","15/08/2018","Older People Provider Services","Reablement Team","R2705"
"Wolverhampton City Council","http://opendatacommunities.org/id/metropolitan-district-council/wolverhampton","705916","Nobisco Limited","548188","1,776.95","Cleaning Supplies and Materials","130225297","15/08/2018","Cleaning","Cleaning of Buildings - General","R2705"
"Wolverhampton City Council","http://opendatacommunities.org/id/metropolitan-district-council/wolverhampton","705916","Nobisco Limited","546195","48.75","Cleaning Supplies and Materials","130223189","03/08/2018","Leisure Services","Bert Williams Leisure Centre Caf�","R2705"
"Wolverhampton City Council","http://opendatacommunities.org/id/metropolitan-district-council/wolverhampton","705916","Nobisco Limited","548961","290.19","Cleaning Supplies and Materials","130226142","22/08/2018","Leisure Services","Bert Williams Leisure Centre","R2705"
"Wolverhampton City Council","http://opendatacommunities.org/id/metropolitan-district-council/wolverhampton","705916","Nobisco Limited","547025","475.25","Cleaning Supplies and Materials","130223878","01/08/2018","Cleaning","Cleaning of Buildings - General","R2705"
"Wolverhampton City Council","http://opendatacommunities.org/id/metropolitan-district-council/wolverhampton","705916","Nobisco Limited","546727","192.00","Cleaning Supplies and Materials","130223726","01/08/2018","Catering","Education Catering - General Overheads","R2705"
"Wolverhampton City Council","http://opendatacommunities.org/id/metropolitan-district-council/wolverhampton","705916","Nobisco Limited","545973","61.22","Cleaning Supplies and Materials","130223180","01/08/2018","Catering","Education Catering - General Overheads","R2705"
"Wolverhampton City Council","http://opendatacommunities.org/id/metropolitan-district-council/wolverhampton","705916","Nobisco Limited","547015","410.39","Cleaning Supplies and Materials","130223870","01/08/2018","Cleaning","Cleaning of Buildings - General","R2705"
"Wolverhampton City Council","http://opendatacommunities.org/id/metropolitan-district-council/wolverhampton","705916","Nobisco Limited","549607","29.14","Cleaning Supplies and Materials","130226680","29/08/2018","Fleet Services","Fleet Management","R2705"
"Wolverhampton City Council","http://opendatacommunities.org/id/metropolitan-district-council/wolverhampton","705916","Nobisco Limited","549321","120.60","Cleaning Supplies and Materials","130226437","29/08/2018","Leisure Services","Central Baths","R2705"
"Wolverhampton City Council","http://opendatacommunities.org/id/metropolitan-district-council/wolverhampton","705916","Nobisco Limited","547525","1,446.10","Equipment - Purchase","130224438","08/08/2018","Environmental Maintenance","Ground Maintenance East","R4000"
"Wolverhampton City Council","http://opendatacommunities.org/id/metropolitan-district-council/wolverhampton","705916","Nobisco Limited","547524","556.47","Cleaning Supplies and Materials","130224437","08/08/2018","Learning Disability Provider","Duke Street Bungalows","R2705"
"Wolverhampton City Council","http://opendatacommunities.org/id/metropolitan-district-council/wolverhampton","705916","Nobisco Limited","549097","143.12","Cleaning Supplies and Materials","130226306","24/08/2018","Markets","Wolverhampton Indoor and Open Market","R2705"
"Wolverhampton City Council","http://opendatacommunities.org/id/metropolitan-district-council/wolverhampton","705916","Nobisco Limited","549093","22.45","Cleaning Supplies and Materials","130226302","24/08/2018","Cleaning","Cleaning of Buildings - General","R2705"
"Wolverhampton City Council","http://opendatacommunities.org/id/metropolitan-district-council/wolverhampton","705916","Nobisco Limited","547807","63.53","Cleaning Supplies and Materials","130224766","15/08/2018","Leisure Services","Bert Williams Leisure Centre Caf�","R2705"
"Wolverhampton City Council","http://opendatacommunities.org/id/metropolitan-district-council/wolverhampton","705916","Nobisco Limited","549611","23.06","Cleaning Supplies and Materials","130226684","31/08/2018","Visitor Economy","Bantock - Tea Rooms","R2705"
"Wolverhampton City Council","http://opendatacommunities.org/id/metropolitan-district-council/wolverhampton","705916","Nobisco Limited","549766","150.53","Cleaning Supplies and Materials","130226830","31/08/2018","Cleaning","Cleaning of Buildings - General","R2705"
"Wolverhampton City Council","http://opendatacommunities.org/id/metropolitan-district-council/wolverhampton","705916","Nobisco Limited","547804","168.30","Cleaning Supplies and Materials","130224763","10/08/2018","Transportation","Passenger Transport - General","R2705"
"Wolverhampton City Council","http://opendatacommunities.org/id/metropolitan-district-council/wolverhampton","705916","Nobisco Limited","547175","7.74","Cleaning Supplies and Materials","130224007","03/08/2018","Cleaning","Cleaning of Buildings - General","R2705"
"Wolverhampton City Council","http://opendatacommunities.org/id/metropolitan-district-council/wolverhampton","705916","Nobisco Limited","548187","18.70","Cleaning Supplies and Materials","130225296","15/08/2018","Transportation","Passenger Transport - General","R2705"
"Wolverhampton City Council","http://opendatacommunities.org/id/metropolitan-district-council/wolverhampton","705916","Nobisco Limited","547526","5.84","Cleaning Supplies and Materials","130224439","15/08/2018","Leisure Services","Bert Williams Leisure Centre","R2705"
"Wolverhampton City Council","http://opendatacommunities.org/id/metropolitan-district-council/wolverhampton","705916","Nobisco Limited","548042","214.22","Cleaning Supplies and Materials","130225156","15/08/2018","Catering","Civic Centre Catering","R2705"
"Wolverhampton City Council","http://opendatacommunities.org/id/metropolitan-district-council/wolverhampton","705916","Nobisco Limited","548190","463.20","Cleaning Supplies and Materials","130225299","15/08/2018","Markets","Bilston Market and Licensed Operations","R2705"
"Wolverhampton City Council","http://opendatacommunities.org/id/metropolitan-district-council/wolverhampton","705916","Nobisco Limited","547177","134.10","Cleaning Supplies and Materials","130224009","03/08/2018","Specialist Support","Upper Pendeford Farm Short Breaks Centre","R2705"
"Wolverhampton City Council","http://opendatacommunities.org/id/metropolitan-district-council/wolverhampton","705916","Nobisco Limited","548314","303.10","Cleaning Supplies and Materials","130225435","22/08/2018","Leisure Services","Central Baths","R2705"
"Wolverhampton City Council","http://opendatacommunities.org/id/metropolitan-district-council/wolverhampton","705916","Nobisco Limited","549227","8.73","Cleaning Supplies and Materials","130226355","29/08/2018","Learning Disability Provider","Ernest Bold Court","R2705"
"Wolverhampton City Council","http://opendatacommunities.org/id/metropolitan-district-council/wolverhampton","705916","Nobisco Limited","549453","55.62","Cleaning Supplies and Materials","130226542","29/08/2018","Leisure Services","Bert Williams Leisure Centre","R2705"
"Wolverhampton City Council","http://opendatacommunities.org/id/metropolitan-district-council/wolverhampton","705916","Nobisco Limited","544527","1,953.12","Cleaning Supplies and Materials","130222157","01/08/2018","Cleaning","Cleaning of Buildings - General","R2705"
"Wolverhampton City Council","http://opendatacommunities.org/id/metropolitan-district-council/wolverhampton","705916","Nobisco Limited","547026","759.52","Cleaning Supplies and Materials","130223879","01/08/2018","Cleaning","Cleaning of Buildings - General","R2705"
"Wolverhampton City Council","http://opendatacommunities.org/id/metropolitan-district-council/wolverhampton","705916","Nobisco Limited","546194","75.30","Cleaning Supplies and Materials","130223188","01/08/2018","Bereavement Services","Coroners","R2705"
"Wolverhampton City Council","http://opendatacommunities.org/id/metropolitan-district-council/wolverhampton","705916","Nobisco Limited","546731","20.64","Cleaning Supplies and Materials","130223729","01/08/2018","Visitor Economy","Bantock House Museum","R2705"
"Wolverhampton City Council","http://opendatacommunities.org/id/metropolitan-district-council/wolverhampton","705916","Nobisco Limited","548043","14.42","Cleaning Supplies and Materials","130225157","15/08/2018","Learning Disability Provider","Ernest Bold Court","R2705"
"Wolverhampton City Council","http://opendatacommunities.org/id/metropolitan-district-council/wolverhampton","705916","Nobisco Limited","547283","203.40","Cleaning Supplies and Materials","130224140","15/08/2018","Older People Provider Services","Reablement Team","R2705"
"Wolverhampton City Council","http://opendatacommunities.org/id/metropolitan-district-council/wolverhampton","705916","Nobisco Limited","549091","101.66","Cleaning Supplies and Materials","130226300","24/08/2018","Catering","Civic Centre Catering","R2705"
"Wolverhampton City Council","http://opendatacommunities.org/id/metropolitan-district-council/wolverhampton","705916","Nobisco Limited","549099","48.60","Cleaning Supplies and Materials","130226308","24/08/2018","Leisure Services","Bert Williams Leisure Centre","R2705"
"Wolverhampton City Council","http://opendatacommunities.org/id/metropolitan-district-council/wolverhampton","705916","Nobisco Limited","548317","98.48","Cleaning Supplies and Materials","130225438","15/08/2018","Visitor Economy","Bantock - Tea Rooms","R2705"
"Wolverhampton City Council","http://opendatacommunities.org/id/metropolitan-district-council/wolverhampton","705916","Nobisco Limited","548803","20.46","Cleaning Supplies and Materials","130225930","22/08/2018","Catering","Civic Centre Catering","R2705"
"Wolverhampton City Council","http://opendatacommunities.org/id/metropolitan-district-council/wolverhampton","705916","Nobisco Limited","547284","10.44","Cleaning Supplies and Materials","130224141","08/08/2018","Specialist Support","Upper Pendeford Farm Short Breaks Centre","R2705"
"Wolverhampton City Council","http://opendatacommunities.org/id/metropolitan-district-council/wolverhampton","705916","Nobisco Limited","547282","106.23","Cleaning Supplies and Materials","130224139","08/08/2018","Visitor Economy","Bantock - Tea Rooms","R2705"
"Wolverhampton City Council","http://opendatacommunities.org/id/metropolitan-district-council/wolverhampton","705916","Nobisco Limited","549768","24.27","Cleaning Supplies and Materials","130226832","31/08/2018","Cleaning","Cleaning of Buildings - General","R2705"
"Wolverhampton City Council","http://opendatacommunities.org/id/metropolitan-district-council/wolverhampton","705916","Nobisco Limited","549767","80.90","Cleaning Supplies and Materials","130226831","31/08/2018","Cleaning","Cleaning of Buildings - General","R2705"
"Wolverhampton City Council","http://opendatacommunities.org/id/metropolitan-district-council/wolverhampton","705916","Nobisco Limited","548186","179.90","Cleaning Supplies and Materials","130225295","15/08/2018","Cleaning","Cleaning of Buildings - General","R2705"
"Wolverhampton City Council","http://opendatacommunities.org/id/metropolitan-district-council/wolverhampton","705916","Nobisco Limited","548313","33.90","Cleaning Supplies and Materials","130225434","15/08/2018","Catering","Education Catering - General Overheads","R2705"
"Wolverhampton City Council","http://opendatacommunities.org/id/metropolitan-district-council/wolverhampton","705916","Nobisco Limited","547803","1,224.90","Cleaning Supplies and Materials","130224762","10/08/2018","Cleaning","Cleaning of Buildings - General","R2705"
"Wolverhampton City Council","http://opendatacommunities.org/id/metropolitan-district-council/wolverhampton","705916","Nobisco Limited","547176","496.20","Cleaning Supplies and Materials","130224008","03/08/2018","Learning Disability Provider","Duke Street Bungalows","R2705"
"Wolverhampton City Council","http://opendatacommunities.org/id/metropolitan-district-council/wolverhampton","705916","Nobisco Limited","548047","6.18","Cleaning Supplies and Materials","130225161","15/08/2018","Independent Living Service","Independent Living Service","R2705"
"Wolverhampton City Council","http://opendatacommunities.org/id/metropolitan-district-council/wolverhampton","705916","Nobisco Limited","548044","15.72","Cleaning Supplies and Materials","130225158","15/08/2018","Learning Disability Provider","Duke Street Bungalows","R2705"
"Wolverhampton City Council","http://opendatacommunities.org/id/metropolitan-district-council/wolverhampton","705916","Nobisco Limited","8844","-94.08","Cleaning Supplies and Materials","130218159","22/08/2018","Cleaning","Cleaning of Buildings - General","R2705"
"Wolverhampton City Council","http://opendatacommunities.org/id/metropolitan-district-council/wolverhampton","705916","Nobisco Limited","546901","371.58","Cleaning Supplies and Materials","130223734","01/08/2018","Leisure Services","Bert Williams Leisure Centre","R2705"
"Wolverhampton City Council","http://opendatacommunities.org/id/metropolitan-district-council/wolverhampton","705916","Nobisco Limited","546897","31.68","Cleaning Supplies and Materials","130223730","01/08/2018","Visitor Economy","Northicote Farm","R2705"
"Wolverhampton City Council","http://opendatacommunities.org/id/metropolitan-district-council/wolverhampton","705916","Nobisco Limited","546733","295.60","Cleaning Supplies and Materials","130223584","01/08/2018","Visitor Economy","The Little Civic","R2705"
"Wolverhampton City Council","http://opendatacommunities.org/id/metropolitan-district-council/wolverhampton","705916","Nobisco Limited","548316","39.35","Cleaning Supplies and Materials","130225437","17/08/2018","Leisure Services","Bert Williams Leisure Centre Caf�","R2705"
"Wolverhampton City Council","http://opendatacommunities.org/id/metropolitan-district-council/wolverhampton","705916","Nobisco Limited","545974","18.46","Cleaning Supplies and Materials","130223181","01/08/2018","Older People Provider Services","Blakenhall Resource Centre","R2705"
"Wolverhampton City Council","http://opendatacommunities.org/id/metropolitan-district-council/wolverhampton","705916","Nobisco Limited","546732","12.76","Cleaning Supplies and Materials","130223583","15/08/2018","Older People Provider Services","Bradley Lodge Resource Centre","R2705"
"Wolverhampton City Council","http://opendatacommunities.org/id/metropolitan-district-council/wolverhampton","705916","Nobisco Limited","549608","193.09","Cleaning Supplies and Materials","130226681","29/08/2018","Catering","Education Catering - General Overheads","R2705"
"Wolverhampton City Council","http://opendatacommunities.org/id/metropolitan-district-council/wolverhampton","705916","Nobisco Limited","549096","36.00","Cleaning Supplies and Materials","130226305","29/08/2018","Leisure Services","Central Baths","R2705"
"Wolverhampton City Council","http://opendatacommunities.org/id/metropolitan-district-council/wolverhampton","705916","Nobisco Limited","548677","215.00","Cleaning Supplies and Materials","130225833","22/08/2018","Cleaning","Public Conveniences","R2705"
"Wolverhampton City Council","http://opendatacommunities.org/id/metropolitan-district-council/wolverhampton","705916","Nobisco Limited","547014","89.70","Cleaning Supplies and Materials","130223869","01/08/2018","Cleaning","Cleaning of Buildings - General","R2705"
"Wolverhampton City Council","http://opendatacommunities.org/id/metropolitan-district-council/wolverhampton","705916","Nobisco Limited","545367","25.40","Cleaning Supplies and Materials","130222714","01/08/2018","Leisure Services","Bert Williams Leisure Centre","R2705"
"Wolverhampton City Council","http://opendatacommunities.org/id/metropolitan-district-council/wolverhampton","705916","Nobisco Limited","547023","7.48","Cleaning Supplies and Materials","130223877","01/08/2018","Transportation","Passenger Transport - General","R2705"
"Wolverhampton City Council","http://opendatacommunities.org/id/metropolitan-district-council/wolverhampton","705916","Nobisco Limited","547023","3.74","Cleaning Supplies and Materials","130223877","01/08/2018","Transportation","Passenger Transport - General","R2705"
"Wolverhampton City Council","http://opendatacommunities.org/id/metropolitan-district-council/wolverhampton","705916","Nobisco Limited","546728","845.50","Cleaning Supplies and Materials","130223727","01/08/2018","Cleaning","Cleaning of Buildings - General","R2705"
"Wolverhampton City Council","http://opendatacommunities.org/id/metropolitan-district-council/wolverhampton","705916","Nobisco Limited","549230","206.31","Cleaning Supplies and Materials","130226357","29/08/2018","Older People Provider Services","Bradley Lodge Resource Centre","R2705"
"Wolverhampton City Council","http://opendatacommunities.org/id/metropolitan-district-council/wolverhampton","705916","Nobisco Limited","549229","31.79","Cleaning Supplies and Materials","130226356","29/08/2018","Leisure Services","Bert Williams Leisure Centre Caf�","R2705"
"Wolverhampton City Council","http://opendatacommunities.org/id/metropolitan-district-council/wolverhampton","705916","Nobisco Limited","549098","891.52","Cleaning Supplies and Materials","130226307","24/08/2018","Environmental Maintenance","Ground Maintenance East","R2705"
"Wolverhampton City Council","http://opendatacommunities.org/id/metropolitan-district-council/wolverhampton","705916","Nobisco Limited","549092","83.13","Cleaning Supplies and Materials","130226301","24/08/2018","Catering","Civic Centre Catering","R2705"
"Wolverhampton City Council","http://opendatacommunities.org/id/metropolitan-district-council/wolverhampton","705916","Nobisco Limited","548189","47.20","Cleaning Supplies and Materials","130225298","15/08/2018","Cleaning","Cleaning of Buildings - General","R2705"
"Wolverhampton City Council","http://opendatacommunities.org/id/metropolitan-district-council/wolverhampton","705916","Nobisco Limited","547681","79.92","Cleaning Supplies and Materials","130224589","08/08/2018","Learning Disability Provider","Duke Street Bungalows","R2705"
"Wolverhampton City Council","http://opendatacommunities.org/id/metropolitan-district-council/wolverhampton","705916","Nobisco Limited","547682","355.00","Cleaning Supplies and Materials","130224590","08/08/2018","Visitor Economy","Bantock House Museum","R2705"
"Wolverhampton City Council","http://opendatacommunities.org/id/metropolitan-district-council/wolverhampton","705916","Nobisco Limited","548675","243.73","Cleaning Supplies and Materials","130225831","22/08/2018","Catering","Civic Centre Catering","R2705"
"Wolverhampton City Council","http://opendatacommunities.org/id/metropolitan-district-council/wolverhampton","705916","Nobisco Limited","549770","53.42","Cleaning Supplies and Materials","130226834","31/08/2018","Visitor Economy","Art Gallery Tea Room","R2705"
"Wolverhampton City Council","http://opendatacommunities.org/id/metropolitan-district-council/wolverhampton","705916","Nobisco Limited","549609","10.24","Cleaning Supplies and Materials","130226682","31/08/2018","Leisure Services","Central Baths","R2705"
"Wolverhampton City Council","http://opendatacommunities.org/id/metropolitan-district-council/wolverhampton","705916","Nobisco Limited","547808","94.92","Cleaning Supplies and Materials","130224767","10/08/2018","Specialist Support","Upper Pendeford Farm Short Breaks Centre","R2705"
"Wolverhampton City Council","http://opendatacommunities.org/id/metropolitan-district-council/wolverhampton","705916","Nobisco Limited","546899","32.00","Cleaning Supplies and Materials","130223732","03/08/2018","Leisure Services","Bert Williams Leisure Centre Caf�","R2705"
"Wolverhampton City Council","http://opendatacommunities.org/id/metropolitan-district-council/wolverhampton","705916","Nobisco Limited","548045","32.80","Cleaning Supplies and Materials","130225159","15/08/2018","Visitor Economy","Art Gallery Tea Room","R2705"
"Wolverhampton City Council","http://opendatacommunities.org/id/metropolitan-district-council/wolverhampton","705916","Nobisco Limited","546900","14.00","Cleaning Supplies and Materials","130223733","15/08/2018","Older People Provider Services","Bradley Lodge Resource Centre","R2705"
"Wolverhampton City Council","http://opendatacommunities.org/id/metropolitan-district-council/wolverhampton","705916","Nobisco Limited","547391","4.94","Cleaning Supplies and Materials","130224291","15/08/2018","Older People Provider Services","Bradley Lodge Resource Centre","R2705"
"Wolverhampton City Council","http://opendatacommunities.org/id/metropolitan-district-council/wolverhampton","705916","Nobisco Limited","548318","23.84","Cleaning Supplies and Materials","130225439","15/08/2018","Visitor Economy","Art Gallery Tea Room","R2705"
"Wolverhampton City Council","http://opendatacommunities.org/id/metropolitan-district-council/wolverhampton","705916","Nobisco Limited","546729","2,691.08","Cleaning Supplies and Materials","130223728","03/08/2018","Cleaning","Cleaning of Buildings - General","R2705"
"Wolverhampton City Council","http://opendatacommunities.org/id/metropolitan-district-council/wolverhampton","705945","Northgate Public Services (UK) Limited","91410069","1,396.80","Services - Professional Fees","130224768","29/08/2018","Customer Services","City Direct","R4400"
"Wolverhampton City Council","http://opendatacommunities.org/id/metropolitan-district-council/wolverhampton","705946","Northgate Vehicle Hire Limited","IW04012808","35.00","Hire of Vehicles","190498240","22/08/2018","Fleet Services","Fleet Management","R3200"
"Wolverhampton City Council","http://opendatacommunities.org/id/metropolitan-district-council/wolverhampton","705946","Northgate Vehicle Hire Limited","SL05144313IN","342.32","Hire of Vehicles","190498247","22/08/2018","Fleet Services","Fleet Management","R3200"
"Wolverhampton City Council","http://opendatacommunities.org/id/metropolitan-district-council/wolverhampton","705946","Northgate Vehicle Hire Limited","SL05144341IN","306.46","Hire of Vehicles","190498274","22/08/2018","Fleet Services","Fleet Management","R3200"
"Wolverhampton City Council","http://opendatacommunities.org/id/metropolitan-district-council/wolverhampton","705946","Northgate Vehicle Hire Limited","SL05144338IN","224.40","Hire of Vehicles","190498271","22/08/2018","Fleet Services","Fleet Management","R3200"
"Wolverhampton City Council","http://opendatacommunities.org/id/metropolitan-district-council/wolverhampton","705946","Northgate Vehicle Hire Limited","SL05144359IN","224.40","Hire of Vehicles","190498291","22/08/2018","Fleet Services","Fleet Management","R3200"
"Wolverhampton City Council","http://opendatacommunities.org/id/metropolitan-district-council/wolverhampton","705946","Northgate Vehicle Hire Limited","SL05144753IN","224.40","Hire of Vehicles","190498305","22/08/2018","Fleet Services","Fleet Management","R3200"
"Wolverhampton City Council","http://opendatacommunities.org/id/metropolitan-district-council/wolverhampton","705946","Northgate Vehicle Hire Limited","SL05144375IN","190.52","Hire of Vehicles","190498302","22/08/2018","Fleet Services","Fleet Management","R3200"
"Wolverhampton City Council","http://opendatacommunities.org/id/metropolitan-district-council/wolverhampton","705946","Northgate Vehicle Hire Limited","SL05144357IN","190.52","Hire of Vehicles","190498289","22/08/2018","Fleet Services","Fleet Management","R3200"
"Wolverhampton City Council","http://opendatacommunities.org/id/metropolitan-district-council/wolverhampton","705946","Northgate Vehicle Hire Limited","SL05144365IN","190.52","Hire of Vehicles","190498295","22/08/2018","Fleet Services","Fleet Management","R3200"
"Wolverhampton City Council","http://opendatacommunities.org/id/metropolitan-district-council/wolverhampton","705946","Northgate Vehicle Hire Limited","SL05144352IN","190.52","Hire of Vehicles","190498284","22/08/2018","Fleet Services","Fleet Management","R3200"
"Wolverhampton City Council","http://opendatacommunities.org/id/metropolitan-district-council/wolverhampton","705946","Northgate Vehicle Hire Limited","SL05144328IN","306.46","Hire of Vehicles","190498261","22/08/2018","Fleet Services","Fleet Management","R3200"
"Wolverhampton City Council","http://opendatacommunities.org/id/metropolitan-district-council/wolverhampton","705946","Northgate Vehicle Hire Limited","SL05116239IN","153.00","Hire of Vehicles","190498244","22/08/2018","Fleet Services","Fleet Management","R3200"
"Wolverhampton City Council","http://opendatacommunities.org/id/metropolitan-district-council/wolverhampton","705946","Northgate Vehicle Hire Limited","SL05144323IN","342.32","Hire of Vehicles","190498257","22/08/2018","Fleet Services","Fleet Management","R3200"
"Wolverhampton City Council","http://opendatacommunities.org/id/metropolitan-district-council/wolverhampton","705946","Northgate Vehicle Hire Limited","SL05144335IN","342.32","Hire of Vehicles","190498268","22/08/2018","Fleet Services","Fleet Management","R3200"
"Wolverhampton City Council","http://opendatacommunities.org/id/metropolitan-district-council/wolverhampton","705946","Northgate Vehicle Hire Limited","SL05144346IN","224.40","Hire of Vehicles","190498279","22/08/2018","Fleet Services","Fleet Management","R3200"
"Wolverhampton City Council","http://opendatacommunities.org/id/metropolitan-district-council/wolverhampton","705946","Northgate Vehicle Hire Limited","SL05144346IN","190.52","Hire of Vehicles","190498279","22/08/2018","Fleet Services","Fleet Management","R3200"
"Wolverhampton City Council","http://opendatacommunities.org/id/metropolitan-district-council/wolverhampton","705946","Northgate Vehicle Hire Limited","SL05144343IN","342.32","Hire of Vehicles","190498276","22/08/2018","Fleet Services","Fleet Management","R3200"
"Wolverhampton City Council","http://opendatacommunities.org/id/metropolitan-district-council/wolverhampton","705946","Northgate Vehicle Hire Limited","SL05144318IN","306.46","Hire of Vehicles","190498252","22/08/2018","Fleet Services","Fleet Management","R3200"
"Wolverhampton City Council","http://opendatacommunities.org/id/metropolitan-district-council/wolverhampton","705946","Northgate Vehicle Hire Limited","SL05144336IN","335.50","Hire of Vehicles","190498269","22/08/2018","Fleet Services","Fleet Management","R3200"
"Wolverhampton City Council","http://opendatacommunities.org/id/metropolitan-district-council/wolverhampton","705946","Northgate Vehicle Hire Limited","SL05144351IN","317.46","Hire of Vehicles","190498283","22/08/2018","Fleet Services","Fleet Management","R3200"
"Wolverhampton City Council","http://opendatacommunities.org/id/metropolitan-district-council/wolverhampton","705946","Northgate Vehicle Hire Limited","IW04018659","30.00","Hire of Vehicles","190498241","22/08/2018","Fleet Services","Fleet Management","R3200"
"Wolverhampton City Council","http://opendatacommunities.org/id/metropolitan-district-council/wolverhampton","705946","Northgate Vehicle Hire Limited","SL05144322IN","342.32","Hire of Vehicles","190498256","22/08/2018","Fleet Services","Fleet Management","R3200"
"Wolverhampton City Council","http://opendatacommunities.org/id/metropolitan-district-council/wolverhampton","705946","Northgate Vehicle Hire Limited","SL05144342IN","306.46","Hire of Vehicles","190498275","22/08/2018","Fleet Services","Fleet Management","R3200"
"Wolverhampton City Council","http://opendatacommunities.org/id/metropolitan-district-council/wolverhampton","705946","Northgate Vehicle Hire Limited","SL05144339IN","224.40","Hire of Vehicles","190498272","22/08/2018","Fleet Services","Fleet Management","R3200"
"Wolverhampton City Council","http://opendatacommunities.org/id/metropolitan-district-council/wolverhampton","705946","Northgate Vehicle Hire Limited","SL05144366IN","224.40","Hire of Vehicles","190498296","22/08/2018","Fleet Services","Fleet Management","R3200"
"Wolverhampton City Council","http://opendatacommunities.org/id/metropolitan-district-council/wolverhampton","705946","Northgate Vehicle Hire Limited","SL05144376IN","231.68","Hire of Vehicles","190498303","22/08/2018","Fleet Services","Fleet Management","R3200"
"Wolverhampton City Council","http://opendatacommunities.org/id/metropolitan-district-council/wolverhampton","705946","Northgate Vehicle Hire Limited","SL05144355IN","190.52","Hire of Vehicles","190498287","22/08/2018","Fleet Services","Fleet Management","R3200"
"Wolverhampton City Council","http://opendatacommunities.org/id/metropolitan-district-council/wolverhampton","705946","Northgate Vehicle Hire Limited","SL05144754IN","15.30","Hire of Vehicles","190498306","22/08/2018","Fleet Services","Fleet Management","R3200"
"Wolverhampton City Council","http://opendatacommunities.org/id/metropolitan-district-council/wolverhampton","705946","Northgate Vehicle Hire Limited","IW03982657","485.66","Hire of Vehicles","190494701","10/08/2018","Fleet Services","Fleet Management","R3200"
"Wolverhampton City Council","http://opendatacommunities.org/id/metropolitan-district-council/wolverhampton","705946","Northgate Vehicle Hire Limited","SL05144360IN","190.52","Hire of Vehicles","190498292","22/08/2018","Fleet Services","Fleet Management","R3200"
"Wolverhampton City Council","http://opendatacommunities.org/id/metropolitan-district-council/wolverhampton","705946","Northgate Vehicle Hire Limited","SL05144368IN","190.52","Hire of Vehicles","190498298","22/08/2018","Fleet Services","Fleet Management","R3200"
"Wolverhampton City Council","http://opendatacommunities.org/id/metropolitan-district-council/wolverhampton","705946","Northgate Vehicle Hire Limited","SL05144333IN","306.46","Hire of Vehicles","190498266","22/08/2018","Fleet Services","Fleet Management","R3200"
"Wolverhampton City Council","http://opendatacommunities.org/id/metropolitan-district-council/wolverhampton","705946","Northgate Vehicle Hire Limited","SL05116240IN","121.24","Hire of Vehicles","190498245","22/08/2018","Fleet Services","Fleet Management","R3200"
"Wolverhampton City Council","http://opendatacommunities.org/id/metropolitan-district-council/wolverhampton","705946","Northgate Vehicle Hire Limited","SL05144325IN","342.32","Hire of Vehicles","190498258","22/08/2018","Fleet Services","Fleet Management","R3200"
"Wolverhampton City Council","http://opendatacommunities.org/id/metropolitan-district-council/wolverhampton","705946","Northgate Vehicle Hire Limited","SL05144312IN","318.56","Hire of Vehicles","190498246","22/08/2018","Fleet Services","Fleet Management","R3200"
"Wolverhampton City Council","http://opendatacommunities.org/id/metropolitan-district-council/wolverhampton","705946","Northgate Vehicle Hire Limited","SL05144314IN","306.46","Hire of Vehicles","190498248","22/08/2018","Fleet Services","Fleet Management","R3200"
"Wolverhampton City Council","http://opendatacommunities.org/id/metropolitan-district-council/wolverhampton","705946","Northgate Vehicle Hire Limited","SL05144319IN","306.46","Hire of Vehicles","190498253","22/08/2018","Fleet Services","Fleet Management","R3200"
"Wolverhampton City Council","http://opendatacommunities.org/id/metropolitan-district-council/wolverhampton","705946","Northgate Vehicle Hire Limited","SL05144353IN","342.32","Hire of Vehicles","190498285","22/08/2018","Fleet Services","Fleet Management","R3200"
"Wolverhampton City Council","http://opendatacommunities.org/id/metropolitan-district-council/wolverhampton","705946","Northgate Vehicle Hire Limited","SL05144345IN","306.46","Hire of Vehicles","190498278","22/08/2018","Fleet Services","Fleet Management","R3200"
"Wolverhampton City Council","http://opendatacommunities.org/id/metropolitan-district-council/wolverhampton","705946","Northgate Vehicle Hire Limited","SL05144354IN","224.40","Hire of Vehicles","190498286","22/08/2018","Fleet Services","Fleet Management","R3200"
"Wolverhampton City Council","http://opendatacommunities.org/id/metropolitan-district-council/wolverhampton","705946","Northgate Vehicle Hire Limited","SL05144367IN","224.40","Hire of Vehicles","190498297","22/08/2018","Fleet Services","Fleet Management","R3200"
"Wolverhampton City Council","http://opendatacommunities.org/id/metropolitan-district-council/wolverhampton","705946","Northgate Vehicle Hire Limited","SL05144348IN","190.52","Hire of Vehicles","190498281","22/08/2018","Fleet Services","Fleet Management","R3200"
"Wolverhampton City Council","http://opendatacommunities.org/id/metropolitan-district-council/wolverhampton","705946","Northgate Vehicle Hire Limited","SL05090760IN","164.54","Hire of Vehicles","190494703","10/08/2018","Fleet Services","Fleet Management","R3200"
"Wolverhampton City Council","http://opendatacommunities.org/id/metropolitan-district-council/wolverhampton","705946","Northgate Vehicle Hire Limited","SL05144371IN","190.52","Hire of Vehicles","190498299","22/08/2018","Fleet Services","Fleet Management","R3200"
"Wolverhampton City Council","http://opendatacommunities.org/id/metropolitan-district-council/wolverhampton","705946","Northgate Vehicle Hire Limited","SL05144361IN","190.52","Hire of Vehicles","190498293","22/08/2018","Fleet Services","Fleet Management","R3200"
"Wolverhampton City Council","http://opendatacommunities.org/id/metropolitan-district-council/wolverhampton","705946","Northgate Vehicle Hire Limited","SL05144326IN","342.32","Hire of Vehicles","190498259","22/08/2018","Fleet Services","Fleet Management","R3200"
"Wolverhampton City Council","http://opendatacommunities.org/id/metropolitan-district-council/wolverhampton","705946","Northgate Vehicle Hire Limited","SL05144331IN","224.40","Hire of Vehicles","190498264","22/08/2018","Fleet Services","Fleet Management","R3200"
"Wolverhampton City Council","http://opendatacommunities.org/id/metropolitan-district-council/wolverhampton","705946","Northgate Vehicle Hire Limited","SL05144337IN","306.46","Hire of Vehicles","190498270","22/08/2018","Fleet Services","Fleet Management","R3200"
"Wolverhampton City Council","http://opendatacommunities.org/id/metropolitan-district-council/wolverhampton","705946","Northgate Vehicle Hire Limited","SL05144321IN","306.46","Hire of Vehicles","190498255","22/08/2018","Fleet Services","Fleet Management","R3200"
"Wolverhampton City Council","http://opendatacommunities.org/id/metropolitan-district-council/wolverhampton","705946","Northgate Vehicle Hire Limited","SL05144315IN","306.46","Hire of Vehicles","190498249","22/08/2018","Fleet Services","Fleet Management","R3200"
"Wolverhampton City Council","http://opendatacommunities.org/id/metropolitan-district-council/wolverhampton","705946","Northgate Vehicle Hire Limited","SL05144320IN","306.46","Hire of Vehicles","190498254","22/08/2018","Fleet Services","Fleet Management","R3200"
"Wolverhampton City Council","http://opendatacommunities.org/id/metropolitan-district-council/wolverhampton","705946","Northgate Vehicle Hire Limited","SL05144344IN","318.56","Hire of Vehicles","190498277","22/08/2018","Fleet Services","Fleet Management","R3200"
"Wolverhampton City Council","http://opendatacommunities.org/id/metropolitan-district-council/wolverhampton","705946","Northgate Vehicle Hire Limited","SL05144378IN","67.32","Hire of Vehicles","190498304","22/08/2018","Fleet Services","Fleet Management","R3200"
"Wolverhampton City Council","http://opendatacommunities.org/id/metropolitan-district-council/wolverhampton","705946","Northgate Vehicle Hire Limited","SL05144347IN","306.46","Hire of Vehicles","190498280","22/08/2018","Fleet Services","Fleet Management","R3200"
"Wolverhampton City Council","http://opendatacommunities.org/id/metropolitan-district-council/wolverhampton","705946","Northgate Vehicle Hire Limited","SL05144334IN","224.40","Hire of Vehicles","190498267","22/08/2018","Fleet Services","Fleet Management","R3200"
"Wolverhampton City Council","http://opendatacommunities.org/id/metropolitan-district-council/wolverhampton","705946","Northgate Vehicle Hire Limited","SL05144358IN","224.40","Hire of Vehicles","190498290","22/08/2018","Fleet Services","Fleet Management","R3200"
"Wolverhampton City Council","http://opendatacommunities.org/id/metropolitan-district-council/wolverhampton","705946","Northgate Vehicle Hire Limited","SL05144372IN","224.40","Hire of Vehicles","190498300","22/08/2018","Fleet Services","Fleet Management","R3200"
"Wolverhampton City Council","http://opendatacommunities.org/id/metropolitan-district-council/wolverhampton","705946","Northgate Vehicle Hire Limited","SL05144350IN","190.52","Hire of Vehicles","190498282","22/08/2018","Fleet Services","Fleet Management","R3200"
"Wolverhampton City Council","http://opendatacommunities.org/id/metropolitan-district-council/wolverhampton","705946","Northgate Vehicle Hire Limited","SL05144327IN","306.46","Hire of Vehicles","190498260","22/08/2018","Fleet Services","Fleet Management","R3200"
"Wolverhampton City Council","http://opendatacommunities.org/id/metropolitan-district-council/wolverhampton","705946","Northgate Vehicle Hire Limited","SL05111595IN","167.16","Hire of Vehicles","190498243","22/08/2018","Fleet Services","Fleet Management","R3200"
"Wolverhampton City Council","http://opendatacommunities.org/id/metropolitan-district-council/wolverhampton","705946","Northgate Vehicle Hire Limited","SL05144332IN","224.40","Hire of Vehicles","190498265","22/08/2018","Fleet Services","Fleet Management","R3200"
"Wolverhampton City Council","http://opendatacommunities.org/id/metropolitan-district-council/wolverhampton","705946","Northgate Vehicle Hire Limited","SL05144329IN","342.32","Hire of Vehicles","190498262","22/08/2018","Fleet Services","Fleet Management","R3200"
"Wolverhampton City Council","http://opendatacommunities.org/id/metropolitan-district-council/wolverhampton","705946","Northgate Vehicle Hire Limited","SL05144316IN","317.46","Hire of Vehicles","190498250","22/08/2018","Fleet Services","Fleet Management","R3200"
"Wolverhampton City Council","http://opendatacommunities.org/id/metropolitan-district-council/wolverhampton","705946","Northgate Vehicle Hire Limited","SL05144317IN","306.46","Hire of Vehicles","190498251","22/08/2018","Fleet Services","Fleet Management","R3200"
"Wolverhampton City Council","http://opendatacommunities.org/id/metropolitan-district-council/wolverhampton","705946","Northgate Vehicle Hire Limited","SL05144330IN","448.80","Hire of Vehicles","190498263","22/08/2018","Fleet Services","Fleet Management","R3200"
"Wolverhampton City Council","http://opendatacommunities.org/id/metropolitan-district-council/wolverhampton","705946","Northgate Vehicle Hire Limited","SL05144340IN","342.32","Hire of Vehicles","190498273","22/08/2018","Fleet Services","Fleet Management","R3200"
"Wolverhampton City Council","http://opendatacommunities.org/id/metropolitan-district-council/wolverhampton","705946","Northgate Vehicle Hire Limited","SL05144356IN","190.52","Hire of Vehicles","190498288","22/08/2018","Fleet Services","Fleet Management","R3200"
"Wolverhampton City Council","http://opendatacommunities.org/id/metropolitan-district-council/wolverhampton","705946","Northgate Vehicle Hire Limited","SL05144362IN","190.52","Hire of Vehicles","190498294","22/08/2018","Fleet Services","Fleet Management","R3200"
"Wolverhampton City Council","http://opendatacommunities.org/id/metropolitan-district-council/wolverhampton","705946","Northgate Vehicle Hire Limited","SL05144373IN","190.52","Hire of Vehicles","190498301","22/08/2018","Fleet Services","Fleet Management","R3200"
"Wolverhampton City Council","http://opendatacommunities.org/id/metropolitan-district-council/wolverhampton","705954","Nottingham Rehab Supplies/Nrs Limited","97580561","1,975.39","Equipment - Purchase","130225162","31/08/2018","Independent Living Service","Independent Living Service","R4000"
"Wolverhampton City Council","http://opendatacommunities.org/id/metropolitan-district-council/wolverhampton","705954","Nottingham Rehab Supplies/Nrs Limited","97567899","1,039.00","Equipment - Purchase","130222527","08/08/2018","Independent Living Service","Independent Living Service","R4000"
"Wolverhampton City Council","http://opendatacommunities.org/id/metropolitan-district-council/wolverhampton","705954","Nottingham Rehab Supplies/Nrs Limited","97567898","1,711.20","Equipment - Purchase","130222526","08/08/2018","Independent Living Service","Independent Living Service","R4000"
"Wolverhampton City Council","http://opendatacommunities.org/id/metropolitan-district-council/wolverhampton","705954","Nottingham Rehab Supplies/Nrs Limited","97540166","729.00","Equipment - Purchase","130218760","01/08/2018","Independent Living Service","Independent Living Service","R4000"
"Wolverhampton City Council","http://opendatacommunities.org/id/metropolitan-district-council/wolverhampton","705954","Nottingham Rehab Supplies/Nrs Limited","97540166","300.10","Equipment - Purchase","130218760","01/08/2018","Independent Living Service","Independent Living Service","R4000"
"Wolverhampton City Council","http://opendatacommunities.org/id/metropolitan-district-council/wolverhampton","705954","Nottingham Rehab Supplies/Nrs Limited","97540166","279.00","Equipment - Purchase","130218760","01/08/2018","Independent Living Service","Independent Living Service","R4000"
"Wolverhampton City Council","http://opendatacommunities.org/id/metropolitan-district-council/wolverhampton","705966","NPOWER Limited-Mba Accounts Receivable","LGU8P7N3","183.16","Electricity","190496081","15/08/2018","Corporate Asset Management","Central Utilities to Recharge","R2100"
"Wolverhampton City Council","http://opendatacommunities.org/id/metropolitan-district-council/wolverhampton","705978","Nuco Training Limited","INV158622","71.50","Training Expenses","130224010","22/08/2018","Adult Education","Direct Delivery Team ( L.& D.)","R1650"
"Wolverhampton City Council","http://opendatacommunities.org/id/metropolitan-district-council/wolverhampton","705978","Nuco Training Limited","INV158622","32.50","Training Expenses","130224010","22/08/2018","Adult Education","Work Related Studies","R1650"
"Wolverhampton City Council","http://opendatacommunities.org/id/metropolitan-district-council/wolverhampton","705978","Nuco Training Limited","INV158622","58.50","Training Expenses","130224010","22/08/2018","Adult Education","Work Related Studies","R1650"
"Wolverhampton City Council","http://opendatacommunities.org/id/metropolitan-district-council/wolverhampton","705978","Nuco Training Limited","INV157331","166.50","Training Expenses","130221825","01/08/2018","Adult Education","Direct Delivery Team ( L.& D.)","R1650"
"Wolverhampton City Council","http://opendatacommunities.org/id/metropolitan-district-council/wolverhampton","705978","Nuco Training Limited","INV158932","368.75","Training Expenses","130224592","29/08/2018","Adult Education","Work Related Studies","R1650"
"Wolverhampton City Council","http://opendatacommunities.org/id/metropolitan-district-council/wolverhampton","705994","Oaklawn Guest House Limited","P18279520180824","153.00","TPP - Accommodation","190498900","29/08/2018","Community Financial Support","Destitute Plus","R5603"
"Wolverhampton City Council","http://opendatacommunities.org/id/metropolitan-district-council/wolverhampton","705994","Oaklawn Guest House Limited","10221","4,270.00","No Recourse to Public Funds","130222897","03/08/2018","Child Protection","CIN/CP Social Work Unit - Area 6","R6314"
"Wolverhampton City Council","http://opendatacommunities.org/id/metropolitan-district-council/wolverhampton","705994","Oaklawn Guest House Limited","P18140820180807","340.00","TPP - Accommodation","190494330","08/08/2018","Community Financial Support","Destitute Plus","R5603"
"Wolverhampton City Council","http://opendatacommunities.org/id/metropolitan-district-council/wolverhampton","705994","Oaklawn Guest House Limited","P18014320180730","153.00","TPP - Accommodation","190491549","01/08/2018","Community Financial Support","Destitute Plus","R5603"
"Wolverhampton City Council","http://opendatacommunities.org/id/metropolitan-district-council/wolverhampton","705994","Oaklawn Guest House Limited","10230","1,960.00","No Recourse to Public Funds","130222898","29/08/2018","Child Protection","CIN/CP Social Work Unit - Area 4","R6314"
"Wolverhampton City Council","http://opendatacommunities.org/id/metropolitan-district-council/wolverhampton","705995","Oakley�S Limited","173470","63.57","Equipment - Purchase","190496258","17/08/2018","Fleet Services","Fleet Management","R4000"
"Wolverhampton City Council","http://opendatacommunities.org/id/metropolitan-district-council/wolverhampton","705995","Oakley�S Limited","174942","1.72","Equipment - Purchase","190500862","31/08/2018","Fleet Services","Fleet Management","R4000"
"Wolverhampton City Council","http://opendatacommunities.org/id/metropolitan-district-council/wolverhampton","705995","Oakley�S Limited","174942","0.62","Equipment - Purchase","190500862","31/08/2018","Fleet Services","Fleet Management","R4000"
"Wolverhampton City Council","http://opendatacommunities.org/id/metropolitan-district-council/wolverhampton","705995","Oakley�S Limited","174686","9.47","Equipment - Purchase","190493222","03/08/2018","Fleet Services","Fleet Management","R4000"
"Wolverhampton City Council","http://opendatacommunities.org/id/metropolitan-district-council/wolverhampton","705995","Oakley�S Limited","174817","3.66","Equipment - Purchase","190500861","31/08/2018","Fleet Services","Fleet Management","R4000"
"Wolverhampton City Council","http://opendatacommunities.org/id/metropolitan-district-council/wolverhampton","705995","Oakley�S Limited","174974","17.55","Equipment - Purchase","190498756","24/08/2018","Fleet Services","Fleet Management","R4000"
"Wolverhampton City Council","http://opendatacommunities.org/id/metropolitan-district-council/wolverhampton","705995","Oakley�S Limited","174974","79.38","Equipment - Purchase","190498756","24/08/2018","Fleet Services","Fleet Management","R4000"
"Wolverhampton City Council","http://opendatacommunities.org/id/metropolitan-district-council/wolverhampton","705995","Oakley�S Limited","174974","108.68","Equipment - Purchase","190498756","24/08/2018","Fleet Services","Fleet Management","R4000"
"Wolverhampton City Council","http://opendatacommunities.org/id/metropolitan-district-council/wolverhampton","705995","Oakley�S Limited","174974","4.20","Equipment - Purchase","190498756","24/08/2018","Fleet Services","Fleet Management","R4000"
"Wolverhampton City Council","http://opendatacommunities.org/id/metropolitan-district-council/wolverhampton","705995","Oakley�S Limited","174974","0.52","Equipment - Purchase","190498756","24/08/2018","Fleet Services","Fleet Management","R4000"
"Wolverhampton City Council","http://opendatacommunities.org/id/metropolitan-district-council/wolverhampton","705995","Oakley�S Limited","174704","14.52","Equipment - Purchase","190494680","10/08/2018","Fleet Services","Fleet Management","R4000"
"Wolverhampton City Council","http://opendatacommunities.org/id/metropolitan-district-council/wolverhampton","705995","Oakley�S Limited","174650","96.50","Equipment - Purchase","190493220","03/08/2018","Fleet Services","Fleet Management","R4000"
"Wolverhampton City Council","http://opendatacommunities.org/id/metropolitan-district-council/wolverhampton","705995","Oakley�S Limited","174650","219.53","Equipment - Purchase","190493220","03/08/2018","Fleet Services","Fleet Management","R4000"
"Wolverhampton City Council","http://opendatacommunities.org/id/metropolitan-district-council/wolverhampton","705995","Oakley�S Limited","174650","9.82","Equipment - Purchase","190493220","03/08/2018","Fleet Services","Fleet Management","R4000"
"Wolverhampton City Council","http://opendatacommunities.org/id/metropolitan-district-council/wolverhampton","705995","Oakley�S Limited","173526","98.55","Equipment - Purchase","190496259","17/08/2018","Fleet Services","Fleet Management","R4000"
"Wolverhampton City Council","http://opendatacommunities.org/id/metropolitan-district-council/wolverhampton","705995","Oakley�S Limited","174199","1,250.00","Equipment - Purchase","130222530","01/08/2018","Environmental Maintenance","Ground Maintenance East","R4000"
"Wolverhampton City Council","http://opendatacommunities.org/id/metropolitan-district-council/wolverhampton","705995","Oakley�S Limited","174755","95.82","Equipment - Purchase","190500129","29/08/2018","Fleet Services","Fleet Management","R4000"
"Wolverhampton City Council","http://opendatacommunities.org/id/metropolitan-district-council/wolverhampton","705995","Oakley�S Limited","174517","31.35","Equipment - Purchase","190496040","15/08/2018","Fleet Services","Fleet Management","R4000"
"Wolverhampton City Council","http://opendatacommunities.org/id/metropolitan-district-council/wolverhampton","705995","Oakley�S Limited","174624","88.99","Equipment - Purchase","190493219","03/08/2018","Fleet Services","Fleet Management","R4000"
"Wolverhampton City Council","http://opendatacommunities.org/id/metropolitan-district-council/wolverhampton","705995","Oakley�S Limited","174624","55.29","Equipment - Purchase","190493219","03/08/2018","Fleet Services","Fleet Management","R4000"
"Wolverhampton City Council","http://opendatacommunities.org/id/metropolitan-district-council/wolverhampton","705995","Oakley�S Limited","174908","43.09","Equipment - Purchase","190498755","24/08/2018","Fleet Services","Fleet Management","R4000"
"Wolverhampton City Council","http://opendatacommunities.org/id/metropolitan-district-council/wolverhampton","705995","Oakley�S Limited","175112","14.08","Equipment - Purchase","190498193","22/08/2018","Fleet Services","Fleet Management","R4000"
"Wolverhampton City Council","http://opendatacommunities.org/id/metropolitan-district-council/wolverhampton","705995","Oakley�S Limited","175064","11.60","Equipment - Purchase","190498192","22/08/2018","Fleet Services","Fleet Management","R4000"
"Wolverhampton City Council","http://opendatacommunities.org/id/metropolitan-district-council/wolverhampton","705995","Oakley�S Limited","174766","2.19","Equipment - Purchase","190496042","15/08/2018","Fleet Services","Fleet Management","R4000"
"Wolverhampton City Council","http://opendatacommunities.org/id/metropolitan-district-council/wolverhampton","705995","Oakley�S Limited","174703","12.59","Equipment - Purchase","190496041","15/08/2018","Fleet Services","Fleet Management","R4000"
"Wolverhampton City Council","http://opendatacommunities.org/id/metropolitan-district-council/wolverhampton","705995","Oakley�S Limited","174703","6.49","Equipment - Purchase","190496041","15/08/2018","Fleet Services","Fleet Management","R4000"
"Wolverhampton City Council","http://opendatacommunities.org/id/metropolitan-district-council/wolverhampton","705995","Oakley�S Limited","174977","152.92","Equipment - Purchase","190500130","29/08/2018","Fleet Services","Fleet Management","R4000"
"Wolverhampton City Council","http://opendatacommunities.org/id/metropolitan-district-council/wolverhampton","705995","Oakley�S Limited","174977","317.34","Equipment - Purchase","190500130","29/08/2018","Fleet Services","Fleet Management","R4000"
"Wolverhampton City Council","http://opendatacommunities.org/id/metropolitan-district-council/wolverhampton","705995","Oakley�S Limited","175142","26.06","Equipment - Purchase","190498757","24/08/2018","Fleet Services","Fleet Management","R4000"
"Wolverhampton City Council","http://opendatacommunities.org/id/metropolitan-district-council/wolverhampton","705995","Oakley�S Limited","175142","9.50","Equipment - Purchase","190498757","24/08/2018","Fleet Services","Fleet Management","R4000"
"Wolverhampton City Council","http://opendatacommunities.org/id/metropolitan-district-council/wolverhampton","705995","Oakley�S Limited","175142","10.17","Equipment - Purchase","190498757","24/08/2018","Fleet Services","Fleet Management","R4000"
"Wolverhampton City Council","http://opendatacommunities.org/id/metropolitan-district-council/wolverhampton","705995","Oakley�S Limited","174705","143.77","Equipment - Purchase","190494681","10/08/2018","Fleet Services","Fleet Management","R4000"
"Wolverhampton City Council","http://opendatacommunities.org/id/metropolitan-district-council/wolverhampton","705995","Oakley�S Limited","174682","2.07","Equipment - Purchase","190493221","03/08/2018","Fleet Services","Fleet Management","R4000"
"Wolverhampton City Council","http://opendatacommunities.org/id/metropolitan-district-council/wolverhampton","705995","Oakley�S Limited","174682","33.35","Equipment - Purchase","190493221","03/08/2018","Fleet Services","Fleet Management","R4000"
"Wolverhampton City Council","http://opendatacommunities.org/id/metropolitan-district-council/wolverhampton","705995","Oakley�S Limited","174682","8.10","Equipment - Purchase","190493221","03/08/2018","Fleet Services","Fleet Management","R4000"
"Wolverhampton City Council","http://opendatacommunities.org/id/metropolitan-district-council/wolverhampton","705995","Oakley�S Limited","174682","11.70","Equipment - Purchase","190493221","03/08/2018","Fleet Services","Fleet Management","R4000"
"Wolverhampton City Council","http://opendatacommunities.org/id/metropolitan-district-council/wolverhampton","705995","Oakley�S Limited","174682","8.91","Equipment - Purchase","190493221","03/08/2018","Fleet Services","Fleet Management","R4000"
"Wolverhampton City Council","http://opendatacommunities.org/id/metropolitan-district-council/wolverhampton","706006","OCN (Open College Network) West Mids","32949","8.08","Exam Expenses (Non-Employee)","130225163","31/08/2018","Adult Education","Foundation Studies Delivery Area","R4630"
"Wolverhampton City Council","http://opendatacommunities.org/id/metropolitan-district-council/wolverhampton","706006","OCN (Open College Network) West Mids","32949","1.62","Exam Expenses (Non-Employee)","130225163","31/08/2018","Adult Education","Discretionary Fund","R4630"
"Wolverhampton City Council","http://opendatacommunities.org/id/metropolitan-district-council/wolverhampton","706006","OCN (Open College Network) West Mids","32949","0.40","Exam Expenses (Non-Employee)","130225163","31/08/2018","Adult Education","Staff Development","R4630"
"Wolverhampton City Council","http://opendatacommunities.org/id/metropolitan-district-council/wolverhampton","706006","OCN (Open College Network) West Mids","32949","0.40","Exam Expenses (Non-Employee)","130225163","31/08/2018","Adult Education","Bursary Fund","R4630"
"Wolverhampton City Council","http://opendatacommunities.org/id/metropolitan-district-council/wolverhampton","706006","OCN (Open College Network) West Mids","32764","1,100.00","Exam Expenses (Non-Employee)","130223585","08/08/2018","Adult Education","Foundation Studies Delivery Area","R4630"
"Wolverhampton City Council","http://opendatacommunities.org/id/metropolitan-district-council/wolverhampton","706006","OCN (Open College Network) West Mids","32764","1,100.00","Exam Expenses (Non-Employee)","130223585","08/08/2018","Adult Education","24+ Advanced Learning Loan","R4630"
"Wolverhampton City Council","http://opendatacommunities.org/id/metropolitan-district-council/wolverhampton","706007","OCR (Cambridge)","101094206","241.48","Exam Expenses (Non-Employee)","130224593","29/08/2018","Adult Education","Work Related Studies","R4630"
"Wolverhampton City Council","http://opendatacommunities.org/id/metropolitan-district-council/wolverhampton","706007","OCR (Cambridge)","101094206","130.03","Exam Expenses (Non-Employee)","130224593","29/08/2018","Adult Education","Discretionary Fund","R4630"
"Wolverhampton City Council","http://opendatacommunities.org/id/metropolitan-district-council/wolverhampton","706007","OCR (Cambridge)","101094207","393.80","Exam Expenses (Non-Employee)","130224594","29/08/2018","Adult Education","Work Related Studies","R4630"
"Wolverhampton City Council","http://opendatacommunities.org/id/metropolitan-district-council/wolverhampton","706007","OCR (Cambridge)","101094207","212.05","Exam Expenses (Non-Employee)","130224594","29/08/2018","Adult Education","Discretionary Fund","R4630"
"Wolverhampton City Council","http://opendatacommunities.org/id/metropolitan-district-council/wolverhampton","706045","One Voice","WAS1718/04","18,205.05","TPP - Social Care Support Services","130225164","15/08/2018","Strategic Commissioning","Wolvo Independant Advocacy Service","R5501"
"Wolverhampton City Council","http://opendatacommunities.org/id/metropolitan-district-council/wolverhampton","706051","OOSHA Limited","513182","119.98","Comms - Telephone Rental","130224769","29/08/2018","Visitor Economy","Box Office Administration","R4504"
"Wolverhampton City Council","http://opendatacommunities.org/id/metropolitan-district-council/wolverhampton","706056","Optare Group Limited","OP/I651956","46.00","Equipment - Purchase","190498811","24/08/2018","Fleet Services","Fleet Management","R4000"
"Wolverhampton City Council","http://opendatacommunities.org/id/metropolitan-district-council/wolverhampton","706064","Opus Energy Limited","64550343","115.90","Electricity","190493113","03/08/2018","Estates and Valuations","I10 Rental Income","R2100"
"Wolverhampton City Council","http://opendatacommunities.org/id/metropolitan-district-council/wolverhampton","706064","Opus Energy Limited","64342633","12.57","Electricity","190493112","03/08/2018","Corporate Asset Management","Central Utilities to Recharge","R2100"
"Wolverhampton City Council","http://opendatacommunities.org/id/metropolitan-district-council/wolverhampton","706064","Opus Energy Limited","64522439","12.17","Electricity","190493111","03/08/2018","Corporate Asset Management","Central Utilities to Recharge","R2100"
"Wolverhampton City Council","http://opendatacommunities.org/id/metropolitan-district-council/wolverhampton","706068","EE Limited","01268740944","36.99","Comms - Mobile Telephones","130224595","15/08/2018","ICTS","Strategic ICTS (ICT Service Budget)","R4507"
"Wolverhampton City Council","http://opendatacommunities.org/id/metropolitan-district-council/wolverhampton","706068","EE Limited","01273399390","185.52","Comms - Mobile Telephones","130225302","10/08/2018","ICTS","Strategic ICTS (ICT Service Budget)","R4507"
"Wolverhampton City Council","http://opendatacommunities.org/id/metropolitan-district-council/wolverhampton","706068","EE Limited","01275565552","13.40","Comms - Mobile Telephones","130225305","15/08/2018","ICTS","Strategic ICTS (ICT Service Budget)","R4507"
"Wolverhampton City Council","http://opendatacommunities.org/id/metropolitan-district-council/wolverhampton","706068","EE Limited","01274495010","126.51","Comms - Mobile Telephones","130225303","10/08/2018","ICTS","Strategic ICTS (ICT Service Budget)","R4507"
"Wolverhampton City Council","http://opendatacommunities.org/id/metropolitan-district-council/wolverhampton","706068","EE Limited","01275564724","15,508.77","Comms - Mobile Telephones","130225304","10/08/2018","ICTS","Strategic ICTS (ICT Service Budget)","R4507"
"Wolverhampton City Council","http://opendatacommunities.org/id/metropolitan-district-council/wolverhampton","706116","Oxley Stationers & Printers","36922","66.67","Marketing \ Non-staff advertising","130226440","29/08/2018","Corporate Communications","Communications & Marketing - General","R4317"
"Wolverhampton City Council","http://opendatacommunities.org/id/metropolitan-district-council/wolverhampton","706120","P A & S G Southall","SVNEWS044","43.30","Books","130222532","01/08/2018","Local Economy","Spring Vale Library","R4309"
"Wolverhampton City Council","http://opendatacommunities.org/id/metropolitan-district-council/wolverhampton","706120","P A & S G Southall","SVNEWS043","39.80","Books","130222531","01/08/2018","Local Economy","Spring Vale Library","R4309"
"Wolverhampton City Council","http://opendatacommunities.org/id/metropolitan-district-council/wolverhampton","706120","P A & S G Southall","SVNEWS045","44.15","Books","130222533","01/08/2018","Local Economy","Spring Vale Library","R4309"
"Wolverhampton City Council","http://opendatacommunities.org/id/metropolitan-district-council/wolverhampton","706147","P Wilcox","PW18-SITR18","250.00","Services - Professional Fees","130221649","01/08/2018","School Planning & Resources","Music Support Team","R4400"
"Wolverhampton City Council","http://opendatacommunities.org/id/metropolitan-district-council/wolverhampton","706147","P Wilcox","PW18-S4S5EX","300.00","Services - Professional Fees","130221648","01/08/2018","School Planning & Resources","Music Support Team","R4400"
"Wolverhampton City Council","http://opendatacommunities.org/id/metropolitan-district-council/wolverhampton","706147","P Wilcox","PW18-38","4,935.00","Services - Professional Fees","130221647","01/08/2018","School Planning & Resources","Music Support Team","R4400"
"Wolverhampton City Council","http://opendatacommunities.org/id/metropolitan-district-council/wolverhampton","706157","P.J. Arnold Limited","11959","2,485.00","R&M - Departmental planned (external)","130224441","31/08/2018","Facilities Management","Magistrates","R2001"
"Wolverhampton City Council","http://opendatacommunities.org/id/metropolitan-district-council/wolverhampton","706157","P.J. Arnold Limited","11958","2,767.00","R&M - Departmental planned (external)","130224440","31/08/2018","Facilities Management","Magistrates","R2001"
"Wolverhampton City Council","http://opendatacommunities.org/id/metropolitan-district-council/wolverhampton","706198","Parkeon Limited","UK109430","797.58","Equipment - R & M","130223881","17/08/2018","Parking Services","Car Parks Operational Staff","R4003"
"Wolverhampton City Council","http://opendatacommunities.org/id/metropolitan-district-council/wolverhampton","706198","Parkeon Limited","UK108657","10.00","Equipment - R & M","130220810","24/08/2018","Parking Services","St Peter�s Car Park","R4003"
"Wolverhampton City Council","http://opendatacommunities.org/id/metropolitan-district-council/wolverhampton","706198","Parkeon Limited","UK109563","899.75","Equipment - R & M","130223883","22/08/2018","Parking Services","St Peter�s Car Park","R4003"
"Wolverhampton City Council","http://opendatacommunities.org/id/metropolitan-district-council/wolverhampton","706198","Parkeon Limited","UK109431","10.00","Equipment - R & M","130223882","17/08/2018","Parking Services","St Peter�s Car Park","R4003"
"Wolverhampton City Council","http://opendatacommunities.org/id/metropolitan-district-council/wolverhampton","706214","Passenger Lift Services Limited","114118","291.28","Equipment - Purchase","190498726","24/08/2018","Fleet Services","Fleet Management","R4000"
"Wolverhampton City Council","http://opendatacommunities.org/id/metropolitan-district-council/wolverhampton","706214","Passenger Lift Services Limited","114308","385.25","Equipment - Purchase","190498728","24/08/2018","Fleet Services","Fleet Management","R4000"
"Wolverhampton City Council","http://opendatacommunities.org/id/metropolitan-district-council/wolverhampton","706214","Passenger Lift Services Limited","114275","159.40","Equipment - Purchase","190498727","24/08/2018","Fleet Services","Fleet Management","R4000"
"Wolverhampton City Council","http://opendatacommunities.org/id/metropolitan-district-council/wolverhampton","706214","Passenger Lift Services Limited","114275","202.53","Equipment - Purchase","190498727","24/08/2018","Fleet Services","Fleet Management","R4000"
"Wolverhampton City Council","http://opendatacommunities.org/id/metropolitan-district-council/wolverhampton","706240","PDE Waste Technologies Limited","PDE19410","325.00","Equipment - Purchase","130225442","15/08/2018","Markets","Bilston Market and Licensed Operations","R4000"
"Wolverhampton City Council","http://opendatacommunities.org/id/metropolitan-district-council/wolverhampton","706240","PDE Waste Technologies Limited","PDE19411","138.00","Equipment - R & M","130225834","17/08/2018","Markets","Wolverhampton Indoor and Open Market","R4003"
"Wolverhampton City Council","http://opendatacommunities.org/id/metropolitan-district-council/wolverhampton","706240","PDE Waste Technologies Limited","PDE19411","33.58","Equipment - R & M","130225834","17/08/2018","Markets","Wolverhampton Indoor and Open Market","R4003"
"Wolverhampton City Council","http://opendatacommunities.org/id/metropolitan-district-council/wolverhampton","706240","PDE Waste Technologies Limited","PDE19411","11.12","Equipment - R & M","130225834","17/08/2018","Markets","Wolverhampton Indoor and Open Market","R4003"
"Wolverhampton City Council","http://opendatacommunities.org/id/metropolitan-district-council/wolverhampton","706240","PDE Waste Technologies Limited","PDE19411","1,230.00","Equipment - R & M","130225834","17/08/2018","Markets","Wolverhampton Indoor and Open Market","R4003"
"Wolverhampton City Council","http://opendatacommunities.org/id/metropolitan-district-council/wolverhampton","706290","Penham Excel Limited","325269","600.00","Services - Professional Fees","130223735","01/08/2018","Public Protection","EHTS Operational Costs","R4400"
"Wolverhampton City Council","http://opendatacommunities.org/id/metropolitan-district-council/wolverhampton","706298","Penn Kids Day Nursery","1GA","600.00","TPP - Child Care provided for client","130223884","22/08/2018","Adult Education","Discretionary Fund","R5034"
"Wolverhampton City Council","http://opendatacommunities.org/id/metropolitan-district-council/wolverhampton","706300","Penn News Limited","PNNEWS049","63.60","Books","130223436","10/08/2018","Local Economy","Penn Library","R4309"
"Wolverhampton City Council","http://opendatacommunities.org/id/metropolitan-district-council/wolverhampton","706301","Penna PLC","573740","5,333.00","Interview Expenses","130226838","31/08/2018","Managing Director","Managing Director","R1600"
"Wolverhampton City Council","http://opendatacommunities.org/id/metropolitan-district-council/wolverhampton","706301","Penna PLC","574637","143.46","Interest Payable","130223131","01/08/2018","Strategic Director Place","Strategic Director Place","R4982"
"Wolverhampton City Council","http://opendatacommunities.org/id/metropolitan-district-council/wolverhampton","706301","Penna PLC","573741","5,333.00","Interview Expenses","130226839","31/08/2018","Managing Director","Managing Director","R1600"
"Wolverhampton City Council","http://opendatacommunities.org/id/metropolitan-district-council/wolverhampton","706301","Penna PLC","574327","10,725.00","Agency Staff","130221828","01/08/2018","Strategic Director Place","Strategic Director Place","R1100"
"Wolverhampton City Council","http://opendatacommunities.org/id/metropolitan-district-council/wolverhampton","706301","Penna PLC","576318","18,525.00","Agency Staff","130224969","29/08/2018","Strategic Director Place","Strategic Director Place","R1100"
"Wolverhampton City Council","http://opendatacommunities.org/id/metropolitan-district-council/wolverhampton","706301","Penna PLC","575895","5,334.00","Interview Expenses","130226840","31/08/2018","Managing Director","Managing Director","R1600"
"Wolverhampton City Council","http://opendatacommunities.org/id/metropolitan-district-council/wolverhampton","706301","Penna PLC","575896","2,600.00","Interview Expenses","130226841","31/08/2018","Managing Director","Managing Director","R1600"
"Wolverhampton City Council","http://opendatacommunities.org/id/metropolitan-district-council/wolverhampton","706314","Performing Right Society Limited","5388310","3,677.75","Services - Fees and Charges","130227052","31/08/2018","Visitor Economy","Civic Halls Non-Direct Event Management Account","R4401"
"Wolverhampton City Council","http://opendatacommunities.org/id/metropolitan-district-council/wolverhampton","706315","Permanent Futures Limited","224120","1,050.00","Agency Staff","130223736","15/08/2018","Corporate Communications","Insight and Performance","R1100"
"Wolverhampton City Council","http://opendatacommunities.org/id/metropolitan-district-council/wolverhampton","706315","Permanent Futures Limited","223926","1,750.00","Agency Staff","130222349","01/08/2018","Corporate Communications","Insight and Performance","R1100"
"Wolverhampton City Council","http://opendatacommunities.org/id/metropolitan-district-council/wolverhampton","706315","Permanent Futures Limited","224315","3,864.00","Agency Staff","130225307","29/08/2018","Looked After Children","Head of Service - LAC","R1100"
"Wolverhampton City Council","http://opendatacommunities.org/id/metropolitan-district-council/wolverhampton","706315","Permanent Futures Limited","224027","1,400.00","Agency Staff","130223191","08/08/2018","Corporate Communications","Insight and Performance","R1100"
"Wolverhampton City Council","http://opendatacommunities.org/id/metropolitan-district-council/wolverhampton","706328","Peter Littleford Limited","44(TR)","363.00","Direct Work With Children","130222164","01/08/2018","Looked After Children","Adoption Support Fund","R6310"
"Wolverhampton City Council","http://opendatacommunities.org/id/metropolitan-district-council/wolverhampton","706332","Peters Limited","1707724","1,067.55","Books","130226010","22/08/2018","Local Economy","Global Budgets","R4309"
"Wolverhampton City Council","http://opendatacommunities.org/id/metropolitan-district-council/wolverhampton","706332","Peters Limited","1707675","199.26","Books","130226007","22/08/2018","Local Economy","Global Budgets","R4309"
"Wolverhampton City Council","http://opendatacommunities.org/id/metropolitan-district-council/wolverhampton","706332","Peters Limited","1707677","18.24","Books","130226009","22/08/2018","Local Economy","Global Budgets","R4309"
"Wolverhampton City Council","http://opendatacommunities.org/id/metropolitan-district-council/wolverhampton","706332","Peters Limited","0649790","2,867.75","Equipment - Purchase","130226310","22/08/2018","Local Economy","Community Recreation Community Centre","R4000"
"Wolverhampton City Council","http://opendatacommunities.org/id/metropolitan-district-council/wolverhampton","706332","Peters Limited","1707676","693.04","Books","130226008","22/08/2018","Local Economy","Global Budgets","R4309"
"Wolverhampton City Council","http://opendatacommunities.org/id/metropolitan-district-council/wolverhampton","706357","Phonak UK Limited","2592113329","2,188.00","Services - Assistive technology","130222350","01/08/2018","Special Educational Needs","SEN Sensory Inclusion","R4407"
"Wolverhampton City Council","http://opendatacommunities.org/id/metropolitan-district-council/wolverhampton","706364","Phs Group PLC","65627569","49.92","Cleaning Supplies and Materials","130212958","22/08/2018","Markets","Wolverhampton Indoor and Open Market","R2705"
"Wolverhampton City Council","http://opendatacommunities.org/id/metropolitan-district-council/wolverhampton","706364","Phs Group PLC","64545810","135.94","Contract Cleaning","130226921","31/08/2018","Local Economy","Global Budgets","R2700"
"Wolverhampton City Council","http://opendatacommunities.org/id/metropolitan-district-council/wolverhampton","706364","Phs Group PLC","65952965","120.00","Contract Cleaning","130226442","24/08/2018","Facilities Management","Civic Centre","R2700"
"Wolverhampton City Council","http://opendatacommunities.org/id/metropolitan-district-council/wolverhampton","706364","Phs Group PLC","65952964","10,967.12","Contract Cleaning","130224295","15/08/2018","Facilities Management","Civic Centre","R2700"
"Wolverhampton City Council","http://opendatacommunities.org/id/metropolitan-district-council/wolverhampton","706365","Phs Teacrate","547045","102.00","Cleaning Supplies and Materials","130226549","29/08/2018","Independent Living Service","Independent Living Service","R2705"
"Wolverhampton City Council","http://opendatacommunities.org/id/metropolitan-district-council/wolverhampton","706365","Phs Teacrate","547045","112.00","Cleaning Supplies and Materials","130226549","29/08/2018","Independent Living Service","Independent Living Service","R2705"
"Wolverhampton City Council","http://opendatacommunities.org/id/metropolitan-district-council/wolverhampton","706365","Phs Teacrate","547045","105.00","Cleaning Supplies and Materials","130226549","29/08/2018","Independent Living Service","Independent Living Service","R2705"
"Wolverhampton City Council","http://opendatacommunities.org/id/metropolitan-district-council/wolverhampton","706365","Phs Teacrate","554535","276.00","Cleaning Supplies and Materials","130222025","01/08/2018","Independent Living Service","Independent Living Service","R2705"
"Wolverhampton City Council","http://opendatacommunities.org/id/metropolitan-district-council/wolverhampton","706365","Phs Teacrate","554535","204.00","Cleaning Supplies and Materials","130222025","01/08/2018","Independent Living Service","Independent Living Service","R2705"
"Wolverhampton City Council","http://opendatacommunities.org/id/metropolitan-district-council/wolverhampton","706385","Pitney Bowes Finance PLC","BL05777587","4,154.97","Equipment - Hire","130226066","22/08/2018","ICTS","Document Centre - General","R4001"
"Wolverhampton City Council","http://opendatacommunities.org/id/metropolitan-district-council/wolverhampton","706417","Plexus Law","04393654","1,750.00","Insurance - General","130223737","01/08/2018","Audit Services","Legal Liability","R4962"
"Wolverhampton City Council","http://opendatacommunities.org/id/metropolitan-district-council/wolverhampton","706417","Plexus Law","04388904","356.50","Insurance - General","130225715","15/08/2018","Audit Services","Legal Liability","R4962"
"Wolverhampton City Council","http://opendatacommunities.org/id/metropolitan-district-council/wolverhampton","706417","Plexus Law","04392328","4,838.73","Insurance - General","130224773","22/08/2018","Audit Services","Wolverhampton Homes Claims","R4962"
"Wolverhampton City Council","http://opendatacommunities.org/id/metropolitan-district-council/wolverhampton","706417","Plexus Law","My ref: TP130003/LG1 04388901","66.00","Insurance - General","190500337","31/08/2018","Audit Services","Legal Liability","R4962"
"Wolverhampton City Council","http://opendatacommunities.org/id/metropolitan-district-council/wolverhampton","706417","Plexus Law","04388903","1,775.00","Insurance - General","130218572","10/08/2018","Audit Services","Wolverhampton Homes Claims","R4962"
"Wolverhampton City Council","http://opendatacommunities.org/id/metropolitan-district-council/wolverhampton","706417","Plexus Law","04397002","4,099.50","Insurance - General","130224777","15/08/2018","Audit Services","Legal Liability","R4962"
"Wolverhampton City Council","http://opendatacommunities.org/id/metropolitan-district-council/wolverhampton","706417","Plexus Law","04395460","5,801.25","Insurance - General","130224774","10/08/2018","Audit Services","Legal Liability","R4962"
"Wolverhampton City Council","http://opendatacommunities.org/id/metropolitan-district-council/wolverhampton","706417","Plexus Law","My ref: TP130003/LG 04388901","241.50","Insurance - General","190500336","31/08/2018","Audit Services","Legal Liability","R4962"
"Wolverhampton City Council","http://opendatacommunities.org/id/metropolitan-district-council/wolverhampton","706417","Plexus Law","04395559","3,180.50","Insurance - General","130224775","10/08/2018","Audit Services","Legal Liability","R4962"
"Wolverhampton City Council","http://opendatacommunities.org/id/metropolitan-district-council/wolverhampton","706429","Polish Social & Cultural Assoc. Limited","18/19","100.00","Comms - Postage","130223738","22/08/2018","Local Economy","Global Budgets","R4503"
"Wolverhampton City Council","http://opendatacommunities.org/id/metropolitan-district-council/wolverhampton","706439","Portakabin Limited","900819762","125.67","Room Hire","130224296","29/08/2018","Facilities Management","Hickman Avenue Depot","R2201"
"Wolverhampton City Council","http://opendatacommunities.org/id/metropolitan-district-council/wolverhampton","706439","Portakabin Limited","900819768","108.33","Room Hire","130224301","29/08/2018","Markets","Wholesale Market Facilities Management","R2201"
"Wolverhampton City Council","http://opendatacommunities.org/id/metropolitan-district-council/wolverhampton","706439","Portakabin Limited","960036061","-452.09","Equipment - Hire","130223886","29/08/2018","Markets","Wolverhampton Indoor and Open Market","R4001"
"Wolverhampton City Council","http://opendatacommunities.org/id/metropolitan-district-council/wolverhampton","706439","Portakabin Limited","900813948","272.97","Equipment - Hire","130223739","03/08/2018","Transportation","Passenger Transport - General","R4001"
"Wolverhampton City Council","http://opendatacommunities.org/id/metropolitan-district-council/wolverhampton","706439","Portakabin Limited","900819763","128.72","Room Hire","130224297","29/08/2018","Facilities Management","Hickman Avenue Depot","R2201"
"Wolverhampton City Council","http://opendatacommunities.org/id/metropolitan-district-council/wolverhampton","706439","Portakabin Limited","900819470","175.00","Equipment - Hire","130223885","29/08/2018","Markets","Wolverhampton Indoor and Open Market","R4001"
"Wolverhampton City Council","http://opendatacommunities.org/id/metropolitan-district-council/wolverhampton","706439","Portakabin Limited","900822159","184.00","R&M - Departmental planned (external)","130224598","29/08/2018","Facilities Management","Culwell Street Depot","R2001"
"Wolverhampton City Council","http://opendatacommunities.org/id/metropolitan-district-council/wolverhampton","706439","Portakabin Limited","900819766","86.67","Room Hire","130224300","29/08/2018","Facilities Management","Culwell Street Depot","R2201"
"Wolverhampton City Council","http://opendatacommunities.org/id/metropolitan-district-council/wolverhampton","706439","Portakabin Limited","960036062","-132.10","Equipment - Hire","130223887","29/08/2018","Markets","Wolverhampton Indoor and Open Market","R4001"
"Wolverhampton City Council","http://opendatacommunities.org/id/metropolitan-district-council/wolverhampton","706439","Portakabin Limited","900816858","272.97","Equipment - Hire","130223740","03/08/2018","Transportation","Passenger Transport - General","R4001"
"Wolverhampton City Council","http://opendatacommunities.org/id/metropolitan-district-council/wolverhampton","706439","Portakabin Limited","900819765","386.75","Room Hire","130224299","29/08/2018","Facilities Management","Hickman Avenue Depot","R2201"
"Wolverhampton City Council","http://opendatacommunities.org/id/metropolitan-district-council/wolverhampton","706439","Portakabin Limited","900819764","167.72","Room Hire","130224298","29/08/2018","Facilities Management","Hickman Avenue Depot","R2201"
"Wolverhampton City Council","http://opendatacommunities.org/id/metropolitan-district-council/wolverhampton","706453","Post Office Counters Limited","VEHICLE TAX AUGUST 2018","3,335.00","Road Fund Licence","190497800","22/08/2018","Fleet Services","Fleet Management","R3004"
"Wolverhampton City Council","http://opendatacommunities.org/id/metropolitan-district-council/wolverhampton","706456","Posturite Limited","INV0575058","114.98","Equipment - Purchase","130224970","10/08/2018","Customer Services","City Direct","R4000"
"Wolverhampton City Council","http://opendatacommunities.org/id/metropolitan-district-council/wolverhampton","706456","Posturite Limited","INV0499872","129.95","Equipment - Purchase","130226443","29/08/2018","Adults Assessment & Care Management East","Adult Services � East","R4000"
"Wolverhampton City Council","http://opendatacommunities.org/id/metropolitan-district-council/wolverhampton","706456","Posturite Limited","INV0574009","33.56","Equipment - Purchase","130224443","22/08/2018","Adults Assessment & Care Management West","Adult Services � West","R4000"
"Wolverhampton City Council","http://opendatacommunities.org/id/metropolitan-district-council/wolverhampton","706456","Posturite Limited","INV0569613","111.96","Equipment - Purchase","130223052","17/08/2018","Adults Assessment & Care Management North","Adult Services � North","R4000"
"Wolverhampton City Council","http://opendatacommunities.org/id/metropolitan-district-council/wolverhampton","706456","Posturite Limited","INV0569613","35.99","Equipment - Purchase","130223052","17/08/2018","Adults Assessment & Care Management North","Adult Services � North","R4000"
"Wolverhampton City Council","http://opendatacommunities.org/id/metropolitan-district-council/wolverhampton","706456","Posturite Limited","INV0569613","12.99","Equipment - Purchase","130223052","17/08/2018","Adults Assessment & Care Management North","Adult Services � North","R4000"
"Wolverhampton City Council","http://opendatacommunities.org/id/metropolitan-district-council/wolverhampton","706456","Posturite Limited","INV0574015","67.99","Equipment - Purchase","130224444","22/08/2018","Adults Assessment & Care Management West","Adult Services � West","R4000"
"Wolverhampton City Council","http://opendatacommunities.org/id/metropolitan-district-council/wolverhampton","706456","Posturite Limited","INV0576956","47.11","Equipment - Purchase","130225443","15/08/2018","Human Resources","HR Advice","R4000"
"Wolverhampton City Council","http://opendatacommunities.org/id/metropolitan-district-council/wolverhampton","706456","Posturite Limited","INV0569492","13.29","Equipment - Purchase","130223051","01/08/2018","School Planning & Resources","Pupil & Student Support","R4000"
"Wolverhampton City Council","http://opendatacommunities.org/id/metropolitan-district-council/wolverhampton","706456","Posturite Limited","INV0569492","7.99","Equipment - Purchase","130223051","01/08/2018","School Planning & Resources","Pupil & Student Support","R4000"
"Wolverhampton City Council","http://opendatacommunities.org/id/metropolitan-district-council/wolverhampton","706456","Posturite Limited","INV0576616","39.96","Equipment - R & M","130225308","15/08/2018","Skills","IMPACT","R4003"
"Wolverhampton City Council","http://opendatacommunities.org/id/metropolitan-district-council/wolverhampton","706469","Kennet Water Ltd (Pollet Pool Group)","SI1803710_PUK","585.90","Materials","130222458","08/08/2018","Environmental Maintenance","Parks - Ranger Service","R4007"
"Wolverhampton City Council","http://opendatacommunities.org/id/metropolitan-district-council/wolverhampton","706486","Premier Paper Group Limited","9366038","114.50","Stationery","130223192","15/08/2018","ICTS","Document Centre - General","R4308"
"Wolverhampton City Council","http://opendatacommunities.org/id/metropolitan-district-council/wolverhampton","706486","Premier Paper Group Limited","9352075","75.00","Stationery","130222167","03/08/2018","ICTS","Document Centre - General","R4308"
"Wolverhampton City Council","http://opendatacommunities.org/id/metropolitan-district-council/wolverhampton","706486","Premier Paper Group Limited","9345023","1,173.00","Stationery","130221831","01/08/2018","ICTS","Document Centre - General","R4308"
"Wolverhampton City Council","http://opendatacommunities.org/id/metropolitan-district-council/wolverhampton","706486","Premier Paper Group Limited","9380911","99.00","Stationery","130224142","22/08/2018","ICTS","Document Centre - General","R4308"
"Wolverhampton City Council","http://opendatacommunities.org/id/metropolitan-district-council/wolverhampton","706486","Premier Paper Group Limited","9345175","1,235.20","Stationery","130221832","01/08/2018","ICTS","Document Centre - General","R4308"
"Wolverhampton City Council","http://opendatacommunities.org/id/metropolitan-district-council/wolverhampton","706486","Premier Paper Group Limited","9368551","82.75","Stationery","130223331","15/08/2018","ICTS","Document Centre - General","R4308"
"Wolverhampton City Council","http://opendatacommunities.org/id/metropolitan-district-council/wolverhampton","706486","Premier Paper Group Limited","9351695","1,173.00","Stationery","130222166","03/08/2018","ICTS","Document Centre - General","R4308"
"Wolverhampton City Council","http://opendatacommunities.org/id/metropolitan-district-council/wolverhampton","706486","Premier Paper Group Limited","9382963","353.50","Stationery","130224599","29/08/2018","ICTS","Document Centre - General","R4308"
"Wolverhampton City Council","http://opendatacommunities.org/id/metropolitan-district-council/wolverhampton","706486","Premier Paper Group Limited","9391640","304.50","Stationery","130225166","31/08/2018","ICTS","Document Centre - General","R4308"
"Wolverhampton City Council","http://opendatacommunities.org/id/metropolitan-district-council/wolverhampton","706486","Premier Paper Group Limited","9388132","325.50","Stationery","130224778","29/08/2018","ICTS","Document Centre - General","R4308"
"Wolverhampton City Council","http://opendatacommunities.org/id/metropolitan-district-council/wolverhampton","706539","Prism UK Medical Limited - Westholme Ltd","5271542","1,602.62","Equipment - Purchase","130222717","03/08/2018","Independent Living Service","Independent Living Service","R4000"
"Wolverhampton City Council","http://opendatacommunities.org/id/metropolitan-district-council/wolverhampton","706539","Prism UK Medical Limited - Westholme Ltd","5272248","623.44","Equipment - Purchase","130222718","08/08/2018","Independent Living Service","Independent Living Service","R4000"
"Wolverhampton City Council","http://opendatacommunities.org/id/metropolitan-district-council/wolverhampton","706539","Prism UK Medical Limited - Westholme Ltd","5272248","15.00","Equipment - Purchase","130222718","08/08/2018","Independent Living Service","Independent Living Service","R4000"
"Wolverhampton City Council","http://opendatacommunities.org/id/metropolitan-district-council/wolverhampton","706551","Professional Fencing Limited/Ta Profence","12442","1,495.00","R&M - Departmental response (external)","130226846","31/08/2018","Environmental Maintenance","Site Works","R2003"
"Wolverhampton City Council","http://opendatacommunities.org/id/metropolitan-district-council/wolverhampton","706575","Prospects Sales & Marketing","00171456","190.00","Computing - Licences","130221650","01/08/2018","Skills","Connexions Contract","R4535"
"Wolverhampton City Council","http://opendatacommunities.org/id/metropolitan-district-council/wolverhampton","706576","Prospects Services","063614","5,152.42","Computing - Licences","130224446","08/08/2018","Skills","Connexions Contract","R4535"
"Wolverhampton City Council","http://opendatacommunities.org/id/metropolitan-district-council/wolverhampton","706578","Protec Fire Detection PLC","A09624","271.81","Fixtures and Fittings - R&M","130223588","17/08/2018","Facilities Management","Civic Centre","R2502"
"Wolverhampton City Council","http://opendatacommunities.org/id/metropolitan-district-council/wolverhampton","706578","Protec Fire Detection PLC","A093C1","540.33","Fixtures and Fittings - R&M","130223053","10/08/2018","Facilities Management","Civic Centre","R2502"
"Wolverhampton City Council","http://opendatacommunities.org/id/metropolitan-district-council/wolverhampton","706578","Protec Fire Detection PLC","A098L9","255.97","Services - Security","130225444","31/08/2018","Maintenance Programme","Centralised R&M","R4405"
"Wolverhampton City Council","http://opendatacommunities.org/id/metropolitan-district-council/wolverhampton","706602","Pugh Computers Limited","INV1807-000060","466.00","Computing - Licences","130221834","17/08/2018","Adult Education","ICT Services","R4535"
"Wolverhampton City Council","http://opendatacommunities.org/id/metropolitan-district-council/wolverhampton","706607","Purchase Power Pitney Bowes","BF705910","243.88","Comms - Postage","130224143","17/08/2018","Youth Offending","Youth Offending Team","R4503"
"Wolverhampton City Council","http://opendatacommunities.org/id/metropolitan-district-council/wolverhampton","706607","Purchase Power Pitney Bowes","BF715380","7,001.91","Comms - Postage","130224144","15/08/2018","ICTS","Postal Franker","R4503"
"Wolverhampton City Council","http://opendatacommunities.org/id/metropolitan-district-council/wolverhampton","706634","Quantaqua Limited","WOLV1435","196.93","Contract Cleaning","130225167","22/08/2018","Leisure Services","WV Active Catering","R2700"
"Wolverhampton City Council","http://opendatacommunities.org/id/metropolitan-district-council/wolverhampton","706634","Quantaqua Limited","WOLV1433","194.75","Contract Cleaning","130223590","01/08/2018","Maintenance Programme","Centralised R&M","R2700"
"Wolverhampton City Council","http://opendatacommunities.org/id/metropolitan-district-council/wolverhampton","706634","Quantaqua Limited","WOLV1432","159.75","Contract Cleaning","130223589","03/08/2018","Maintenance Programme","Centralised R&M","R2700"
"Wolverhampton City Council","http://opendatacommunities.org/id/metropolitan-district-council/wolverhampton","706634","Quantaqua Limited","WOLV1434AMENDED","159.75","Contract Cleaning","130224011","22/08/2018","Catering","Education Catering - General Overheads","R2700"
"Wolverhampton City Council","http://opendatacommunities.org/id/metropolitan-district-council/wolverhampton","706634","Quantaqua Limited","CN201","-196.93","Contract Cleaning","130224447","22/08/2018","Catering","Education Catering - General Overheads","R2700"
"Wolverhampton City Council","http://opendatacommunities.org/id/metropolitan-district-council/wolverhampton","706649","R A Port & Associates","2021-18","110.90","Services - Professional Fees","130207263","22/08/2018","Legal Services","Centralised External Legal Costs","R4400"
"Wolverhampton City Council","http://opendatacommunities.org/id/metropolitan-district-council/wolverhampton","706649","R A Port & Associates","2164-18","5,100.00","Services - Professional Fees","130225445","22/08/2018","Legal Services","Centralised External Legal Costs","R4400"
"Wolverhampton City Council","http://opendatacommunities.org/id/metropolitan-district-council/wolverhampton","706649","R A Port & Associates","2164-18","-5,100.00","Services - Professional Fees","130225445","22/08/2018","Legal Services","Centralised External Legal Costs","R4400"
"Wolverhampton City Council","http://opendatacommunities.org/id/metropolitan-district-council/wolverhampton","706649","R A Port & Associates","2164-18","59.00","Services - Professional Fees","130225445","22/08/2018","Legal Services","Centralised External Legal Costs","R4400"
"Wolverhampton City Council","http://opendatacommunities.org/id/metropolitan-district-council/wolverhampton","706649","R A Port & Associates","2169-18","93.95","Services - Professional Fees","130225720","22/08/2018","Legal Services","Centralised External Legal Costs","R4400"
"Wolverhampton City Council","http://opendatacommunities.org/id/metropolitan-district-council/wolverhampton","706649","R A Port & Associates","2159-18","136.85","Services - Professional Fees","130224600","10/08/2018","Legal Services","Centralised External Legal Costs","R4400"
"Wolverhampton City Council","http://opendatacommunities.org/id/metropolitan-district-council/wolverhampton","706649","R A Port & Associates","2017-18","117.45","Services - Professional Fees","130206823","22/08/2018","Legal Services","Centralised External Legal Costs","R4400"
"Wolverhampton City Council","http://opendatacommunities.org/id/metropolitan-district-council/wolverhampton","706649","R A Port & Associates","2029-18","63.50","Services - Professional Fees","130207529","22/08/2018","Legal Services","Centralised External Legal Costs","R4400"
"Wolverhampton City Council","http://opendatacommunities.org/id/metropolitan-district-council/wolverhampton","706649","R A Port & Associates","2168-18","69.35","Services - Professional Fees","130225446","22/08/2018","Legal Services","Centralised External Legal Costs","R4400"
"Wolverhampton City Council","http://opendatacommunities.org/id/metropolitan-district-council/wolverhampton","706649","R A Port & Associates","2152-18","51.00","Services - Professional Fees","130223741","01/08/2018","Legal Services","Centralised External Legal Costs","R4400"
"Wolverhampton City Council","http://opendatacommunities.org/id/metropolitan-district-council/wolverhampton","706649","R A Port & Associates","2167-18","59.00","Services - Professional Fees","130225310","15/08/2018","Legal Services","Centralised External Legal Costs","R4400"
"Wolverhampton City Council","http://opendatacommunities.org/id/metropolitan-district-council/wolverhampton","706649","R A Port & Associates","2160-18","90.45","Services - Professional Fees","130224779","10/08/2018","Legal Services","Centralised External Legal Costs","R4400"
"Wolverhampton City Council","http://opendatacommunities.org/id/metropolitan-district-council/wolverhampton","706649","R A Port & Associates","2022-18","80.50","Services - Professional Fees","130206952","22/08/2018","Legal Services","Centralised External Legal Costs","R4400"
"Wolverhampton City Council","http://opendatacommunities.org/id/metropolitan-district-council/wolverhampton","706649","R A Port & Associates","2027-18","93.00","Services - Professional Fees","130207528","22/08/2018","Legal Services","Centralised External Legal Costs","R4400"
"Wolverhampton City Council","http://opendatacommunities.org/id/metropolitan-district-council/wolverhampton","706649","R A Port & Associates","2012-18","144.50","Services - Professional Fees","130206695","22/08/2018","Legal Services","Centralised External Legal Costs","R4400"
"Wolverhampton City Council","http://opendatacommunities.org/id/metropolitan-district-council/wolverhampton","706649","R A Port & Associates","2008-18","147.60","Services - Professional Fees","130204432","17/08/2018","Legal Services","Centralised External Legal Costs","R4400"
"Wolverhampton City Council","http://opendatacommunities.org/id/metropolitan-district-council/wolverhampton","706649","R A Port & Associates","2163-18","70.30","Services - Professional Fees","130224601","10/08/2018","Legal Services","Centralised External Legal Costs","R4400"
"Wolverhampton City Council","http://opendatacommunities.org/id/metropolitan-district-council/wolverhampton","706649","R A Port & Associates","2018-18","71.90","Services - Professional Fees","130206824","22/08/2018","Legal Services","Centralised External Legal Costs","R4400"
"Wolverhampton City Council","http://opendatacommunities.org/id/metropolitan-district-council/wolverhampton","706649","R A Port & Associates","2151-18","89.48","Services - Professional Fees","130225718","22/08/2018","Legal Services","Centralised External Legal Costs","R4400"
"Wolverhampton City Council","http://opendatacommunities.org/id/metropolitan-district-council/wolverhampton","706649","R A Port & Associates","2165-18","74.25","Services - Professional Fees","130225719","22/08/2018","Legal Services","Centralised External Legal Costs","R4400"
"Wolverhampton City Council","http://opendatacommunities.org/id/metropolitan-district-council/wolverhampton","706649","R A Port & Associates","2009-18","67.50","Services - Professional Fees","130204433","17/08/2018","Legal Services","Centralised External Legal Costs","R4400"
"Wolverhampton City Council","http://opendatacommunities.org/id/metropolitan-district-council/wolverhampton","706649","R A Port & Associates","2166-18","57.25","Services - Professional Fees","130225168","15/08/2018","Legal Services","Centralised External Legal Costs","R4400"
"Wolverhampton City Council","http://opendatacommunities.org/id/metropolitan-district-council/wolverhampton","706649","R A Port & Associates","2140-18","230.05","Services - Professional Fees","130224145","08/08/2018","Legal Services","Centralised External Legal Costs","R4400"
"Wolverhampton City Council","http://opendatacommunities.org/id/metropolitan-district-council/wolverhampton","706668","R S Recovery Limited","00-131881","35.00","Services - Professional Fees","190498716","24/08/2018","Fleet Services","Fleet Management","R4400"
"Wolverhampton City Council","http://opendatacommunities.org/id/metropolitan-district-council/wolverhampton","706668","R S Recovery Limited","00-131881","135.00","Services - Professional Fees","190498716","24/08/2018","Fleet Services","Fleet Management","R4400"
"Wolverhampton City Council","http://opendatacommunities.org/id/metropolitan-district-council/wolverhampton","706668","R S Recovery Limited","00-131881","28.50","Services - Professional Fees","190498716","24/08/2018","Fleet Services","Fleet Management","R4400"
"Wolverhampton City Council","http://opendatacommunities.org/id/metropolitan-district-council/wolverhampton","706668","R S Recovery Limited","00-131881","143.52","Services - Professional Fees","190498716","24/08/2018","Fleet Services","Fleet Management","R4400"
"Wolverhampton City Council","http://opendatacommunities.org/id/metropolitan-district-council/wolverhampton","706668","R S Recovery Limited","00-130987","187.50","Services - Professional Fees","190496022","15/08/2018","Fleet Services","Fleet Management","R4400"
"Wolverhampton City Council","http://opendatacommunities.org/id/metropolitan-district-council/wolverhampton","706668","R S Recovery Limited","00-130988","120.00","Services - Professional Fees","190496023","15/08/2018","Fleet Services","Fleet Management","R4400"
"Wolverhampton City Council","http://opendatacommunities.org/id/metropolitan-district-council/wolverhampton","706668","R S Recovery Limited","00-131504","242.50","Services - Professional Fees","190498715","24/08/2018","Fleet Services","Fleet Management","R4400"
"Wolverhampton City Council","http://opendatacommunities.org/id/metropolitan-district-council/wolverhampton","706668","R S Recovery Limited","00-128851","278.75","Services - Professional Fees","190496021","15/08/2018","Fleet Services","Fleet Management","R4400"
"Wolverhampton City Council","http://opendatacommunities.org/id/metropolitan-district-council/wolverhampton","706677","R.D.Jukes & Co Limited","11760","7,274.55","Construction and Conversion","130224146","03/08/2018","-","Electrical Works","C1100"
"Wolverhampton City Council","http://opendatacommunities.org/id/metropolitan-district-council/wolverhampton","706683","R82 UK Limited","239513","80.00","Equipment - Purchase","130224780","24/08/2018","Independent Living Service","Independent Living Service","R4000"
"Wolverhampton City Council","http://opendatacommunities.org/id/metropolitan-district-council/wolverhampton","706683","R82 UK Limited","239514","80.00","Equipment - Purchase","130224602","24/08/2018","Independent Living Service","Independent Living Service","R4000"
"Wolverhampton City Council","http://opendatacommunities.org/id/metropolitan-district-council/wolverhampton","706683","R82 UK Limited","238376","629.10","Equipment - Purchase","130222534","03/08/2018","Independent Living Service","Independent Living Service","R4000"
"Wolverhampton City Council","http://opendatacommunities.org/id/metropolitan-district-council/wolverhampton","706692","Rad Building Limited","17/0061/DFG.","12,000.00","Grants paid out to other organisations","190494382","08/08/2018","-","Disabled Facilities Grants","C5011"
"Wolverhampton City Council","http://opendatacommunities.org/id/metropolitan-district-council/wolverhampton","706696","Radiotek Limited","14410","200.00","Equipment - Hire","130223742","01/08/2018","Licensing","Licensing - Licensing Act 2003","R4001"
"Wolverhampton City Council","http://opendatacommunities.org/id/metropolitan-district-council/wolverhampton","706696","Radiotek Limited","14410","40.00","Comms - Postage","130223742","01/08/2018","Licensing","Licensing - Licensing Act 2003","R4503"
"Wolverhampton City Council","http://opendatacommunities.org/id/metropolitan-district-council/wolverhampton","706697","Radis Community Care","2207201820180802","196.02","TPP - Home Care","190493172","03/08/2018","Older People Care Purchasing","OP Care Purchasing (Spot Placements)","R5420"
"Wolverhampton City Council","http://opendatacommunities.org/id/metropolitan-district-council/wolverhampton","706697","Radis Community Care","2207201820180802","199.65","TPP - Home Care","190493172","03/08/2018","Older People Care Purchasing","OP Care Purchasing (Spot Placements)","R5420"
"Wolverhampton City Council","http://opendatacommunities.org/id/metropolitan-district-council/wolverhampton","706697","Radis Community Care","2207201820180802","116.16","TPP - Home Care","190493172","03/08/2018","Physical Disabilities Care Purchasing","PD Care Purchasing (Spot Placements)","R5420"
"Wolverhampton City Council","http://opendatacommunities.org/id/metropolitan-district-council/wolverhampton","706697","Radis Community Care","2207201820180802","50.82","TPP - Home Care","190493172","03/08/2018","Older People Care Purchasing","OP Care Purchasing (Spot Placements)","R5420"
"Wolverhampton City Council","http://opendatacommunities.org/id/metropolitan-district-council/wolverhampton","706697","Radis Community Care","2207201820180802","50.82","TPP - Home Care","190493172","03/08/2018","Physical Disabilities Care Purchasing","PD Care Purchasing (Spot Placements)","R5420"
"Wolverhampton City Council","http://opendatacommunities.org/id/metropolitan-district-council/wolverhampton","706697","Radis Community Care","2207201820180802","50.82","TPP - Home Care","190493172","03/08/2018","Physical Disabilities Care Purchasing","PD Care Purchasing (Spot Placements)","R5420"
"Wolverhampton City Council","http://opendatacommunities.org/id/metropolitan-district-council/wolverhampton","706697","Radis Community Care","2207201820180802","101.64","TPP - Home Care","190493172","03/08/2018","Older People Care Purchasing","OP Care Purchasing (Spot Placements)","R5420"
"Wolverhampton City Council","http://opendatacommunities.org/id/metropolitan-district-council/wolverhampton","706697","Radis Community Care","2207201820180802","206.91","TPP - Home Care","190493172","03/08/2018","Physical Disabilities Care Purchasing","PD Care Purchasing (Spot Placements)","R5420"
"Wolverhampton City Council","http://opendatacommunities.org/id/metropolitan-district-council/wolverhampton","706697","Radis Community Care","2207201820180802","192.39","TPP - Home Care","190493172","03/08/2018","Physical Disabilities Care Purchasing","PD Care Purchasing (Spot Placements)","R5420"
"Wolverhampton City Council","http://opendatacommunities.org/id/metropolitan-district-council/wolverhampton","706697","Radis Community Care","2207201820180802","221.43","TPP - Home Care","190493172","03/08/2018","Older People Care Purchasing","OP Care Purchasing (Spot Placements)","R5420"
"Wolverhampton City Council","http://opendatacommunities.org/id/metropolitan-district-council/wolverhampton","706697","Radis Community Care","2207201820180802","7.26","TPP - Home Care","190493172","03/08/2018","Older People Care Purchasing","OP Care Purchasing (Spot Placements)","R5420"
"Wolverhampton City Council","http://opendatacommunities.org/id/metropolitan-district-council/wolverhampton","706697","Radis Community Care","2207201820180802","486.42","TPP - Home Care","190493172","03/08/2018","Physical Disabilities Care Purchasing","PD Care Purchasing (Spot Placements)","R5420"
"Wolverhampton City Council","http://opendatacommunities.org/id/metropolitan-district-council/wolverhampton","706697","Radis Community Care","2207201820180802","471.90","TPP - Home Care","190493172","03/08/2018","Physical Disabilities Care Purchasing","PD Care Purchasing (Spot Placements)","R5420"
"Wolverhampton City Council","http://opendatacommunities.org/id/metropolitan-district-council/wolverhampton","706697","Radis Community Care","2207201820180802","79.86","TPP - Home Care","190493172","03/08/2018","Learning Disabilities Care Purchasing","LD Care Purchasing (Spot Placements)","R5420"
"Wolverhampton City Council","http://opendatacommunities.org/id/metropolitan-district-council/wolverhampton","706697","Radis Community Care","2207201820180802","225.06","TPP - Home Care","190493172","03/08/2018","Older People Care Purchasing","OP Care Purchasing (Spot Placements)","R5420"
"Wolverhampton City Council","http://opendatacommunities.org/id/metropolitan-district-council/wolverhampton","706697","Radis Community Care","2207201820180802","58.08","TPP - Home Care","190493172","03/08/2018","Older People Care Purchasing","OP Care Purchasing (Spot Placements)","R5420"
"Wolverhampton City Council","http://opendatacommunities.org/id/metropolitan-district-council/wolverhampton","706697","Radis Community Care","2207201820180802","14.52","TPP - Home Care","190493172","03/08/2018","Older People Care Purchasing","OP Care Purchasing (Spot Placements)","R5420"
"Wolverhampton City Council","http://opendatacommunities.org/id/metropolitan-district-council/wolverhampton","706697","Radis Community Care","2207201820180802","101.64","TPP - Home Care","190493172","03/08/2018","Older People Care Purchasing","OP Care Purchasing (Spot Placements)","R5420"
"Wolverhampton City Council","http://opendatacommunities.org/id/metropolitan-district-council/wolverhampton","706697","Radis Community Care","2207201820180802","203.28","TPP - Home Care","190493172","03/08/2018","Older People Care Purchasing","OP Care Purchasing (Spot Placements)","R5420"
"Wolverhampton City Council","http://opendatacommunities.org/id/metropolitan-district-council/wolverhampton","706697","Radis Community Care","2207201820180802","199.65","TPP - Home Care","190493172","03/08/2018","Older People Care Purchasing","OP Care Purchasing (Spot Placements)","R5420"
"Wolverhampton City Council","http://opendatacommunities.org/id/metropolitan-district-council/wolverhampton","706697","Radis Community Care","2207201820180802","105.27","TPP - Home Care","190493172","03/08/2018","Older People Care Purchasing","OP Care Purchasing (Spot Placements)","R5420"
"Wolverhampton City Council","http://opendatacommunities.org/id/metropolitan-district-council/wolverhampton","706697","Radis Community Care","2207201820180802","43.56","TPP - Home Care","190493172","03/08/2018","Older People Care Purchasing","OP Care Purchasing (Spot Placements)","R5420"
"Wolverhampton City Council","http://opendatacommunities.org/id/metropolitan-district-council/wolverhampton","706697","Radis Community Care","2207201820180802","50.82","TPP - Home Care","190493172","03/08/2018","Older People Care Purchasing","OP Care Purchasing (Spot Placements)","R5420"
"Wolverhampton City Council","http://opendatacommunities.org/id/metropolitan-district-council/wolverhampton","706697","Radis Community Care","2207201820180802","101.64","TPP - Home Care","190493172","03/08/2018","Older People Care Purchasing","OP Care Purchasing (Spot Placements)","R5420"
"Wolverhampton City Council","http://opendatacommunities.org/id/metropolitan-district-council/wolverhampton","706697","Radis Community Care","2207201820180802","7.26","TPP - Home Care","190493172","03/08/2018","Physical Disabilities Care Purchasing","PD Care Purchasing (Spot Placements)","R5420"
"Wolverhampton City Council","http://opendatacommunities.org/id/metropolitan-district-council/wolverhampton","706697","Radis Community Care","2207201820180802","188.76","TPP - Home Care","190493172","03/08/2018","Physical Disabilities Care Purchasing","PD Care Purchasing (Spot Placements)","R5420"
"Wolverhampton City Council","http://opendatacommunities.org/id/metropolitan-district-council/wolverhampton","706697","Radis Community Care","2207201820180802","39.93","TPP - Home Care","190493172","03/08/2018","Older People Care Purchasing","OP Care Purchasing (Spot Placements)","R5420"
"Wolverhampton City Council","http://opendatacommunities.org/id/metropolitan-district-council/wolverhampton","706697","Radis Community Care","2207201820180802","72.60","TPP - Home Care","190493172","03/08/2018","Physical Disabilities Care Purchasing","PD Care Purchasing (Spot Placements)","R5420"
"Wolverhampton City Council","http://opendatacommunities.org/id/metropolitan-district-council/wolverhampton","706697","Radis Community Care","2207201820180802","76.23","TPP - Home Care","190493172","03/08/2018","Physical Disabilities Care Purchasing","PD Care Purchasing (Spot Placements)","R5420"
"Wolverhampton City Council","http://opendatacommunities.org/id/metropolitan-district-council/wolverhampton","706697","Radis Community Care","2207201820180802","32.67","TPP - Home Care","190493172","03/08/2018","Physical Disabilities Care Purchasing","PD Care Purchasing (Spot Placements)","R5420"
"Wolverhampton City Council","http://opendatacommunities.org/id/metropolitan-district-council/wolverhampton","706697","Radis Community Care","2207201820180802","221.43","TPP - Home Care","190493172","03/08/2018","Older People Care Purchasing","OP Care Purchasing (Spot Placements)","R5420"
